Body Name,Body,Service Division Label,Service Division Code,Organisational Unit,Expenditure Category,Expenditure Code,CIPFA detailed expediture type,CIPFA detailed expediture code,Narrative,Date,Transaction number,Net Amount,Capital and Revenue,Supplier Name,Supplier ID,,
Chorley Borough Council,http://statistics.data.gov.uk/id/local-authority/30UE,Open Spaces,1038,Customer & Digital,Miscellaneous Expenses,40200,Miscellaneous Expenses,5034,"Goods: Jetting of Chorley Council culvert near Ackhurst Lodge, Southport Road",17/02/2021,0153268,350.00,Revenue,A1 Drainage Solutions NW Ltd,81625,,
Chorley Borough Council,http://statistics.data.gov.uk/id/local-authority/30UE,Central Support Services,1009,Customer & Digital,Telephones - Other,40085,Communication and Computing,5028,Adept Telecom - February 2021,17/02/2021,0153282,"1,609.64",Revenue,Adept Telecom PLC,77452,,
Chorley Borough Council,http://statistics.data.gov.uk/id/local-authority/30UE,Economic Development,1096,Commercial Services,Exhibitions & Special Events,40158,Miscellaneous Expenses,5034,Choose Chorley Events - Training Webinars x 4 1. Instagram 2. LinkedIn Marketing Strategy 3. Facebook 4. Twitter,24/02/2021,0151672,"1,000.00",Revenue,Alex McCann - Altrincham HQ,81286,,
Chorley Borough Council,http://statistics.data.gov.uk/id/local-authority/30UE,Central Support Services,1009,Customer & Digital,Bank Charges,40151,Miscellaneous Expenses,5034,add ac fee,03/02/2021,0152930,10.00,Revenue,Allpay Net Ltd,17242,,
Chorley Borough Council,http://statistics.data.gov.uk/id/local-authority/30UE,Central Support Services,1009,Customer & Digital,Bank Charges,40151,Miscellaneous Expenses,5034,post office,03/02/2021,0152930,439.25,Revenue,Allpay Net Ltd,17242,,
Chorley Borough Council,http://statistics.data.gov.uk/id/local-authority/30UE,Unapportionable Central OHeads,1009,Customer & Digital,Bank Charges,40151,Miscellaneous Expenses,5034,paypoint,03/02/2021,0152930,192.40,Revenue,Allpay Net Ltd,17242,,
Chorley Borough Council,http://statistics.data.gov.uk/id/local-authority/30UE,Central Support Services,1009,Customer & Digital,Bank Charges,40151,Miscellaneous Expenses,5034,webconnect,03/02/2021,0152930,46.00,Revenue,Allpay Net Ltd,17242,,
Chorley Borough Council,http://statistics.data.gov.uk/id/local-authority/30UE,Central Support Services,1009,Early Intervention,External Contractor,40198,Miscellaneous Expenses,5034,pest control contract payments,24/02/2021,0152155,"1,342.95",Revenue,ALPHA PEST CONTROL LIMITED,18208,,
Chorley Borough Council,http://statistics.data.gov.uk/id/local-authority/30UE,Central Support Services,1009,Early Intervention,External Contractor,40198,Miscellaneous Expenses,5034,pest control contract payments,24/02/2021,0152158,"2,328.95",Revenue,ALPHA PEST CONTROL LIMITED,18208,,
Chorley Borough Council,http://statistics.data.gov.uk/id/local-authority/30UE,Central Support Services,1009,Early Intervention,External Contractor,40198,Miscellaneous Expenses,5034,Alpha - for pest control related invoices - ext contractor,10/02/2021,0152480,"2,530.01",Revenue,ALPHA PEST CONTROL LIMITED,18208,,
Chorley Borough Council,http://statistics.data.gov.uk/id/local-authority/30UE,Central Support Services,1009,Early Intervention,External Contractor,40198,Miscellaneous Expenses,5034,Alpha - for pest control related invoices - ext contractor,10/02/2021,0152568,"1,974.07",Revenue,ALPHA PEST CONTROL LIMITED,18208,,
Chorley Borough Council,http://statistics.data.gov.uk/id/local-authority/30UE,Central Support Services,1009,Early Intervention,External Contractor,40198,Miscellaneous Expenses,5034,Alpha - for pest control related invoices - ext contractor,10/02/2021,0152686,"3,451.85",Revenue,ALPHA PEST CONTROL LIMITED,18208,,
Chorley Borough Council,http://statistics.data.gov.uk/id/local-authority/30UE,Central Support Services,1009,Early Intervention,External Contractor,40198,Miscellaneous Expenses,5034,pest control contract payments,24/02/2021,0152987,796.18,Revenue,ALPHA PEST CONTROL LIMITED,18208,,
Chorley Borough Council,http://statistics.data.gov.uk/id/local-authority/30UE,Central Support Services,1009,Early Intervention,External Contractor,40198,Miscellaneous Expenses,5034,pest control contract payments,24/02/2021,0152988,"1,454.74",Revenue,ALPHA PEST CONTROL LIMITED,18208,,
Chorley Borough Council,http://statistics.data.gov.uk/id/local-authority/30UE,Central Support Services,1009,Early Intervention,External Contractor,40198,Miscellaneous Expenses,5034,pest control contract payments,24/02/2021,0153173,"1,179.02",Revenue,ALPHA PEST CONTROL LIMITED,18208,,
Chorley Borough Council,http://statistics.data.gov.uk/id/local-authority/30UE,Central Support Services,1009,Early Intervention,External Contractor,40198,Miscellaneous Expenses,5034,pest control contract payments,24/02/2021,0153332,"1,213.24",Revenue,ALPHA PEST CONTROL LIMITED,18208,,
Chorley Borough Council,http://statistics.data.gov.uk/id/local-authority/30UE,Corporate Management,1008,Policy & Governance,Car Leasing Payment,14100,Direct Employee Expenses,5001,"VIN REDACTED, NAME REDACTED",17/02/2021,0153293,367.35,Revenue,Alphabet (Uk) Fleet Management Ltd,16651,,
Chorley Borough Council,http://statistics.data.gov.uk/id/local-authority/30UE,Corporate Management,1008,Policy & Governance,Car Leasing Payment,14100,Direct Employee Expenses,5001,vat,17/02/2021,0153293,32.55,Revenue,Alphabet (Uk) Fleet Management Ltd,16651,,
Chorley Borough Council,http://statistics.data.gov.uk/id/local-authority/30UE,Control Accounts,Control,Policy & Governance,Manual Control Account,00001,Balance Sheet,Balance,-vat,17/02/2021,0153293,-32.55,Revenue,Alphabet (Uk) Fleet Management Ltd,16651,,
Chorley Borough Council,http://statistics.data.gov.uk/id/local-authority/30UE,Development Control,1091,Policy & Governance,Car Leasing Payment,14100,Direct Employee Expenses,5001,"VIN REDACTED, NAME REDACTED",17/02/2021,0153293,250.79,Revenue,Alphabet (Uk) Fleet Management Ltd,16651,,
Chorley Borough Council,http://statistics.data.gov.uk/id/local-authority/30UE,Development Control,1091,Policy & Governance,Car Leasing Payment,14100,Direct Employee Expenses,5001,vat,17/02/2021,0153293,21.37,Revenue,Alphabet (Uk) Fleet Management Ltd,16651,,
Chorley Borough Council,http://statistics.data.gov.uk/id/local-authority/30UE,Control Accounts,Control,Policy & Governance,Manual Control Account,00001,Balance Sheet,Balance,-vat,17/02/2021,0153293,-21.37,Revenue,Alphabet (Uk) Fleet Management Ltd,16651,,
Chorley Borough Council,http://statistics.data.gov.uk/id/local-authority/30UE,Capital,Capital,Commercial Services,Other Contractor,03012,Capital Expenditure,Capital,Fire system  works at  MW Ext,10/02/2021,0153041,596.58,Capital,Amalgamated Ltd,78289,,
Chorley Borough Council,http://statistics.data.gov.uk/id/local-authority/30UE,Central Support Services,1009,Commercial Services,Burglar Alarms & Security Systems,20075,Fixtures and Fittings,5010,Intruder and Access systems reactive blanket,10/02/2021,0153073,297.10,Revenue,Amalgamated Ltd,78289,,
Chorley Borough Council,http://statistics.data.gov.uk/id/local-authority/30UE,Central Support Services,1009,Commercial Services,Burglar Alarms & Security Systems,20075,Fixtures and Fittings,5010,Intruder / Access systems PPM Blanket,17/02/2021,0153085,470.22,Revenue,Amalgamated Ltd,78289,,
Chorley Borough Council,http://statistics.data.gov.uk/id/local-authority/30UE,Central Support Services,1009,Early Intervention,Impounded Dogs Costs,40207,Miscellaneous Expenses,5034,Stray Dogs Overnight Accommodation Retainer,24/02/2021,0153292,320.00,Revenue,Animal Wardens Ltd,80965,,
Chorley Borough Council,http://statistics.data.gov.uk/id/local-authority/30UE,Corporate Management,1008,Chief Executive,Employee Related Insurance,18003,Indirect Employee Expenses,5002,Terrorism premium including IPT - 2021,17/02/2021,0153231,"9,055.20",Revenue,Aon UK Limited Accounts Division,76559,,
Chorley Borough Council,http://statistics.data.gov.uk/id/local-authority/30UE,Corporate Management,1008,Chief Executive,Employee Related Insurance,18003,Indirect Employee Expenses,5002,Aspen Premium including IPT - 2021: General Property and Business Interruption Commercial Property and Business Interruption,17/02/2021,0153252,"97,767.90",Revenue,Aon UK Limited Accounts Division,76559,,
Chorley Borough Council,http://statistics.data.gov.uk/id/local-authority/30UE,Corporate Management,1008,Chief Executive,Employee Related Insurance,18003,Indirect Employee Expenses,5002,Protector Motor Fleet/Car Lease Premium including IPT 2021,17/02/2021,0153253,"66,530.96",Revenue,Aon UK Limited Accounts Division,76559,,
Chorley Borough Council,http://statistics.data.gov.uk/id/local-authority/30UE,Corporate Management,1008,Chief Executive,Employee Related Insurance,18003,Indirect Employee Expenses,5002,Crime Premium including IPT 2021,17/02/2021,0153255,"5,292.00",Revenue,Aon UK Limited Accounts Division,76559,,
Chorley Borough Council,http://statistics.data.gov.uk/id/local-authority/30UE,Corporate Management,1008,Chief Executive,Employee Related Insurance,18003,Indirect Employee Expenses,5002,Personal Accident Insurance Premium including IPT - 2021,17/02/2021,0153256,972.16,Revenue,Aon UK Limited Accounts Division,76559,,
Chorley Borough Council,http://statistics.data.gov.uk/id/local-authority/30UE,Corporate Management,1008,Chief Executive,Employee Related Insurance,18003,Indirect Employee Expenses,5002,Fine art Renewal premium including IPT - 2021,17/02/2021,0153257,"7,907.41",Revenue,Aon UK Limited Accounts Division,76559,,
Chorley Borough Council,http://statistics.data.gov.uk/id/local-authority/30UE,Central Support Services,1009,Policy & Governance,Car Leasing Payment,14100,Direct Employee Expenses,5001,"NAME REDACTED Toyota Corolla - 1.8 VVT-i Hybrid Excel 5dr CVT, Solid - Pure White, 3 Years, 10,000 miles pa, Hatchback",03/02/2021,0152942,"2,303.04",Revenue,Arnold Clark Finance Ltd,20685,,
Chorley Borough Council,http://statistics.data.gov.uk/id/local-authority/30UE,Central Support Services,1009,Policy & Governance,Car Leasing Payment,14100,Direct Employee Expenses,5001,VAT,03/02/2021,0152942,191.06,Revenue,Arnold Clark Finance Ltd,20685,,
Chorley Borough Council,http://statistics.data.gov.uk/id/local-authority/30UE,Control Accounts,Control,Policy & Governance,Manual Control Account,00001,Balance Sheet,Balance,- VAT,03/02/2021,0152942,-191.06,Revenue,Arnold Clark Finance Ltd,20685,,
Chorley Borough Council,http://statistics.data.gov.uk/id/local-authority/30UE,Business Support,1095,Commercial Services,Grants To Other Organisations,40127,Grants and Subscriptions,5031,Shop Front Grant 35 Chapel Street,24/02/2021,0153408,"6,154.00",Revenue,At Home With Ruth Limited,81719,,
Chorley Borough Council,http://statistics.data.gov.uk/id/local-authority/30UE,Service Management & Support,1009,Customer & Digital,Tools & Equipment - Purchase,40003,"Equipment, Furniture & Materia",5023,Supply and fit a new 320S Backhoe c/w hydraulic side shift and replace the sub frame,10/02/2021,0151663,"9,600.00",Revenue,Balmers Garden Machinery,17075,,
Chorley Borough Council,http://statistics.data.gov.uk/id/local-authority/30UE,Service Management & Support,1009,Customer & Digital,Vehicles and Plant Maintenance,30045,Direct Transport Costs,5016,"2x Redwing turf tyres, 1x front work light, 1x front light unit, 1x rim and wheel centre, 1x lock nut, 1x guard, 1x quick lock pin",10/02/2021,0152860,461.86,Revenue,Balmers Garden Machinery,17075,,
Chorley Borough Council,http://statistics.data.gov.uk/id/local-authority/30UE,Service Management & Support,1009,Customer & Digital,Hire of Plant,40001,"Equipment, Furniture & Materia",5023,Hire of a leaf sucker. Deliver to Bengal St,03/02/2021,0152863,300.00,Revenue,Balmers Garden Machinery,17075,,
Chorley Borough Council,http://statistics.data.gov.uk/id/local-authority/30UE,Service Management & Support,1009,Customer & Digital,Vehicles and Plant Maintenance,30045,Direct Transport Costs,5016,"1X Redwing turf tyre (front), 2x redwing turf tyre (rear)",10/02/2021,0152864,354.50,Revenue,Balmers Garden Machinery,17075,,
Chorley Borough Council,http://statistics.data.gov.uk/id/local-authority/30UE,Service Management & Support,1009,Customer & Digital,Hire Of Vehicles and Plant,30028,Contrct Hire & Operating Lease,5018,"2 x John Deere 1580 with front mounted rotary cutting decks @ 24071.84 each, 1 x Wessex gang mower @ 32860",10/02/2021,0153088,"1,242.40",Revenue,Balmers Garden Machinery,17075,,
Chorley Borough Council,http://statistics.data.gov.uk/id/local-authority/30UE,Control Accounts,Control,Policy & Governance,General Balances,00100,Balance Sheet,Balance,28 Dec 2020,26/02/2021,0152768,"3,141.27",Revenue,Barclaycard Commercial,59848,,
Chorley Borough Council,http://statistics.data.gov.uk/id/local-authority/30UE,Control Accounts,Control,Policy & Governance,General Balances,00100,Balance Sheet,Balance,28 Nov 2020,26/02/2021,0152769,"2,946.30",Revenue,Barclaycard Commercial,59848,,
Chorley Borough Council,http://statistics.data.gov.uk/id/local-authority/30UE,Control Accounts,Control,Policy & Governance,General Balances,00100,Balance Sheet,Balance,28 Oct 2020,26/02/2021,0152770,"12,732.32",Revenue,Barclaycard Commercial,59848,,
Chorley Borough Council,http://statistics.data.gov.uk/id/local-authority/30UE,Corporate Management,1008,Policy & Governance,Bank Charges,40151,Miscellaneous Expenses,5034,30 Nov 2020,26/02/2021,0152771,15.00,Revenue,Barclaycard Merchant Services,61601,,
Chorley Borough Council,http://statistics.data.gov.uk/id/local-authority/30UE,Corporate Management,1008,Policy & Governance,Bank Charges,40151,Miscellaneous Expenses,5034,30 Nov 2020,26/02/2021,0152771,474.50,Revenue,Barclaycard Merchant Services,61601,,
Chorley Borough Council,http://statistics.data.gov.uk/id/local-authority/30UE,Corporate Management,1008,Policy & Governance,Bank Charges,40151,Miscellaneous Expenses,5034,30 Nov 2020,26/02/2021,0152773,15.00,Revenue,Barclaycard Merchant Services,61601,,
Chorley Borough Council,http://statistics.data.gov.uk/id/local-authority/30UE,Corporate Management,1008,Policy & Governance,Bank Charges,40151,Miscellaneous Expenses,5034,30-Nov-20,26/02/2021,0152773,"2,299.82",Revenue,Barclaycard Merchant Services,61601,,
Chorley Borough Council,http://statistics.data.gov.uk/id/local-authority/30UE,Corporate Management,1008,Policy & Governance,Bank Charges,40151,Miscellaneous Expenses,5034,30 Nov 2020,26/02/2021,0152777,15.00,Revenue,Barclaycard Merchant Services,61601,,
Chorley Borough Council,http://statistics.data.gov.uk/id/local-authority/30UE,Corporate Management,1008,Policy & Governance,Bank Charges,40151,Miscellaneous Expenses,5034,30 Nov 2020,26/02/2021,0152777,"1,094.42",Revenue,Barclaycard Merchant Services,61601,,
Chorley Borough Council,http://statistics.data.gov.uk/id/local-authority/30UE,Corporate Management,1008,Policy & Governance,Bank Charges,40151,Miscellaneous Expenses,5034,31 jan 21,26/02/2021,0153688,15.00,Revenue,Barclaycard Merchant Services,61601,,
Chorley Borough Council,http://statistics.data.gov.uk/id/local-authority/30UE,Corporate Management,1008,Policy & Governance,Bank Charges,40151,Miscellaneous Expenses,5034,non-vat,26/02/2021,0153688,485.15,Revenue,Barclaycard Merchant Services,61601,,
Chorley Borough Council,http://statistics.data.gov.uk/id/local-authority/30UE,Corporate Management,1008,Policy & Governance,Bank Charges,40151,Miscellaneous Expenses,5034,31 jan 21,26/02/2021,0153689,15.00,Revenue,Barclaycard Merchant Services,61601,,
Chorley Borough Council,http://statistics.data.gov.uk/id/local-authority/30UE,Corporate Management,1008,Policy & Governance,Bank Charges,40151,Miscellaneous Expenses,5034,non vat,26/02/2021,0153689,"1,204.91",Revenue,Barclaycard Merchant Services,61601,,
Chorley Borough Council,http://statistics.data.gov.uk/id/local-authority/30UE,Capital,Capital,Early Intervention,Other Legal Fees,03020,Capital Expenditure,Capital,Football Foundation - Review and report on proposed substation lease 350 (as per NAME REDACTED dated 3rd Dec 2020),17/02/2021,0153240,350.00,Capital,Bates Wells Solicitors,80471,,
Chorley Borough Council,http://statistics.data.gov.uk/id/local-authority/30UE,Economic Development,1096,Commercial Services,Exhibitions & Special Events,40158,Miscellaneous Expenses,5034,Choose Chorley Events - Training Webinars x 3 1. Getting Started with Wordpress 2. Selling Online 3. SEO,03/02/2021,0152904,675.00,Revenue,Bentham Creative - Interact-IT,77467,,
Chorley Borough Council,http://statistics.data.gov.uk/id/local-authority/30UE,Development Control,1091,Customer & Digital,Computer Software-Maintenance,40107,Communication and Computing,5028,"Q3 Heritage Services for Period 1 October to 31 December 2020 - 85 hours @ 38.92 per hour, 229 Miles at 0.45p per mile",03/02/2021,0152892,"3,411.25",Revenue,Blackburn with Darwen Borough Council,21000,,
Chorley Borough Council,http://statistics.data.gov.uk/id/local-authority/30UE,Central Support Services,1009,Policy & Governance,External Contractor,40198,Miscellaneous Expenses,5034,Payroll Services Contract for 2020/21 - Chorley Council,10/02/2021,0149708,"5,999.71",Revenue,Blackpool Borough Council,16518,,
Chorley Borough Council,http://statistics.data.gov.uk/id/local-authority/30UE,Central Support Services,1009,Policy & Governance,External Contractor,40198,Miscellaneous Expenses,5034,Payroll Services Contract for 2020/21 - Chorley Council,10/02/2021,0152706,"5,739.30",Revenue,Blackpool Borough Council,16518,,
Chorley Borough Council,http://statistics.data.gov.uk/id/local-authority/30UE,Central Support Services,1009,Policy & Governance,External Contractor,40198,Miscellaneous Expenses,5034,Payroll Services Contract for 2020/21 - Chorley Council,10/02/2021,0152914,"1,128.35",Revenue,Blackpool Borough Council,16518,,
Chorley Borough Council,http://statistics.data.gov.uk/id/local-authority/30UE,Central Support Services,1009,Commercial Services,Other Contributions,40145,Grants and Subscriptions,5031,33 Units requiring Ethernet Fibre NIA from the Network Node TDOI. COF600/36 Fibre to a new JMF6 at the site boundary,10/02/2021,0153172,"12,812.47",Revenue,British Telecom,17189,,
Chorley Borough Council,http://statistics.data.gov.uk/id/local-authority/30UE,Central Support Services,1009,Customer & Digital,Telephones - Rentals,40083,Communication and Computing,5028,recurring charges,10/02/2021,0152957,"3,330.79",Revenue,British Telecommunications Plc,17131,,
Chorley Borough Council,http://statistics.data.gov.uk/id/local-authority/30UE,Central Support Services,1009,Customer & Digital,Telephones - Calls,40084,Communication and Computing,5028,usage,10/02/2021,0152957,177.00,Revenue,British Telecommunications Plc,17131,,
Chorley Borough Council,http://statistics.data.gov.uk/id/local-authority/30UE,Unapportionable Central OHeads,1009,Commercial Services,General Repairs - Reactive,20004,Repairs Maintenance & Alts,5005,"35-39 Market St, Erect scaffolding to Landing area on dog legged staircase. Renew ceiling tiles to grid.",17/02/2021,0153301,597.66,Revenue,Bryan Lee Building Contractors Ltd,78160,,
Chorley Borough Council,http://statistics.data.gov.uk/id/local-authority/30UE,Business Support,1095,Commercial Services,Fixtures & Fittings - Purchase,20027,Fixtures and Fittings,5010,"Reel Cinema, Call out to board up damaged window - Saturday 16th January 2021",17/02/2021,0153302,365.82,Revenue,Bryan Lee Building Contractors Ltd,78160,,
Chorley Borough Council,http://statistics.data.gov.uk/id/local-authority/30UE,Unapportionable Central OHeads,1009,Commercial Services,Planned Maintenance,20006,Repairs Maintenance & Alts,5005,CAB roofing repairs as per tender,26/02/2021,0153691,"26,215.67",Revenue,Bryan Lee Building Contractors Ltd,78160,,
Chorley Borough Council,http://statistics.data.gov.uk/id/local-authority/30UE,Unapportionable Central OHeads,1009,Commercial Services,Planned Maintenance,20006,Repairs Maintenance & Alts,5005,"Chorley Cemetery Water Surface Improvement Works, Part 1  1,540.00, Part 2  3,900.00, as agreed with NAME REDACTED",26/02/2021,0153692,"6,160.00",Revenue,Bryan Lee Building Contractors Ltd,78160,,
Chorley Borough Council,http://statistics.data.gov.uk/id/local-authority/30UE,Service Management & Support,1009,Customer & Digital,Supplies-Grounds Maintenance,40025,"Equipment, Furniture & Materia",5023,"Bengal Street Depot, Chorley � Empty 3 interceptors and clear aco drains 12 visits at 450.00",12/02/2021,0150877,390.00,Revenue,C J Lyon,16579,,
Chorley Borough Council,http://statistics.data.gov.uk/id/local-authority/30UE,Service Management & Support,1009,Customer & Digital,Supplies-Grounds Maintenance,40025,"Equipment, Furniture & Materia",5023,"Bengal Street Depot, Chorley � Empty 3 interceptors and clear aco drains 12 visits at 450.00",12/02/2021,0151982,450.00,Revenue,C J Lyon,16579,,
Chorley Borough Council,http://statistics.data.gov.uk/id/local-authority/30UE,Central Support Services,1009,Early Intervention,Land Drainage Works,20048,Grounds Maintenance Costs,5013,Land Drainage works undertaken on 4/11/20,10/02/2021,0152447,500.00,Revenue,C J Lyon,16579,,
Chorley Borough Council,http://statistics.data.gov.uk/id/local-authority/30UE,Service Management & Support,1009,Customer & Digital,Supplies-Grounds Maintenance,40025,"Equipment, Furniture & Materia",5023,"Bengal Street Depot, Chorley � Empty 3 interceptors and clear aco drains 12 visits at 450.00",12/02/2021,0152486,450.00,Revenue,C J Lyon,16579,,
Chorley Borough Council,http://statistics.data.gov.uk/id/local-authority/30UE,Service Management & Support,1009,Customer & Digital,Supplies-Grounds Maintenance,40025,"Equipment, Furniture & Materia",5023,"Bengal Street Depot, Chorley � Empty 3 interceptors and clear aco drains 12 visits at 450.00",12/02/2021,0152487,390.00,Revenue,C J Lyon,16579,,
Chorley Borough Council,http://statistics.data.gov.uk/id/local-authority/30UE,Service Management & Support,1009,Customer & Digital,Purchase of Plant,40000,"Equipment, Furniture & Materia",5023,18 Tonne Refuse Collection Vehicle Mercedes Benz Econic 1830L 4x2 3900mm 18000kg and SEMAT body as per the spec,24/02/2021,0152376,"97,500.00",Revenue,C P Davidson & Sons Ltd,21093,,
Chorley Borough Council,http://statistics.data.gov.uk/id/local-authority/30UE,Service Management & Support,1009,Customer & Digital,Purchase of Plant,40000,"Equipment, Furniture & Materia",5023,road fund,24/02/2021,0152376,355.00,Revenue,C P Davidson & Sons Ltd,21093,,
Chorley Borough Council,http://statistics.data.gov.uk/id/local-authority/30UE,Unapportionable Central OHeads,1009,Customer & Digital,Emergency Call Out System,40096,Communication and Computing,5028,Out of Hours call charges 20/21,24/02/2021,0153251,274.68,Revenue,CallCare Ltd,20257,,
Chorley Borough Council,http://statistics.data.gov.uk/id/local-authority/30UE,Central Support Services,1009,Customer & Digital,Emergency Call Out System,40096,Communication and Computing,5028,Out of hours standing charge 20/21,24/02/2021,0153251,120.00,Revenue,CallCare Ltd,20257,,
Chorley Borough Council,http://statistics.data.gov.uk/id/local-authority/30UE,Central Support Services,1009,Policy & Governance,Agency Staff,13000,Direct Employee Expenses,5001,Interim Deputy CFO - NAME REDACTED - Director of Finance 4 x Days per/week 3 x Months agency cover,10/02/2021,0152640,"2,200.00",Revenue,Castlefield Recruitment Limited,80454,,
Chorley Borough Council,http://statistics.data.gov.uk/id/local-authority/30UE,Central Support Services,1009,Policy & Governance,Agency Staff,13000,Direct Employee Expenses,5001,"Interim Deputy CFO - NAME REDACTED - Director of Finance, 4 x Days per/week 3 x Months agency cover",10/02/2021,0152913,"2,200.00",Revenue,Castlefield Recruitment Limited,80454,,
Chorley Borough Council,http://statistics.data.gov.uk/id/local-authority/30UE,Corporate Management,1008,Policy & Governance,Agency Staff,13000,Direct Employee Expenses,5001,Covid Grants Agency Staff NAME REDACTED,26/02/2021,0153433,"1,037.50",Revenue,Castlefield Recruitment Limited,80454,,
Chorley Borough Council,http://statistics.data.gov.uk/id/local-authority/30UE,Corporate Management,1008,Policy & Governance,Agency Staff,13000,Direct Employee Expenses,5001,Covid Grants Agency Staff NAME REDACTED,26/02/2021,0153434,987.50,Revenue,Castlefield Recruitment Limited,80454,,
Chorley Borough Council,http://statistics.data.gov.uk/id/local-authority/30UE,Corporate Management,1008,Commercial Services,Miscellaneous Expenses,40200,Miscellaneous Expenses,5034,Covid spraying of council buildings,10/02/2021,0153076,"6,030.00",Revenue,Castus Solutions Limited,78812,,
Chorley Borough Council,http://statistics.data.gov.uk/id/local-authority/30UE,Corporate Management,1008,Commercial Services,Miscellaneous Expenses,40200,Miscellaneous Expenses,5034,Covid spraying of council buildings,10/02/2021,0153089,"5,650.00",Revenue,Castus Solutions Limited,78812,,
Chorley Borough Council,http://statistics.data.gov.uk/id/local-authority/30UE,Corporate Management,1008,Commercial Services,Miscellaneous Expenses,40200,Miscellaneous Expenses,5034,Covid spraying of council buildings and vans,24/02/2021,0153499,"5,650.00",Revenue,Castus Solutions Limited,78812,,
Chorley Borough Council,http://statistics.data.gov.uk/id/local-authority/30UE,Corporate Management,1008,Commercial Services,Miscellaneous Expenses,40200,Miscellaneous Expenses,5034,Covid spraying of council buildings and vans,26/02/2021,0153698,"5,650.00",Revenue,Castus Solutions Limited,78812,,
Chorley Borough Council,http://statistics.data.gov.uk/id/local-authority/30UE,Capital,Capital,Commercial Services,Main Contractor,03007,Capital Expenditure,Capital,Structural report for Astley Hall Renovation,10/02/2021,0153034,712.50,Capital,CFA Structures Ltd,78548,,
Chorley Borough Council,http://statistics.data.gov.uk/id/local-authority/30UE,Corporate Management,1008,Customer & Digital,Taxi Testing & Vehicle Safety Report,40234,Services,5027,MOT,10/02/2021,0153090,"1,097.00",Revenue,Chorley Autocare Ltd,17110,,
Chorley Borough Council,http://statistics.data.gov.uk/id/local-authority/30UE,Regulatory Services,1048,Customer & Digital,Taxi Testing & Vehicle Safety Report,40234,Services,5027,Tax Test,10/02/2021,0153090,171.00,Revenue,Chorley Autocare Ltd,17110,,
Chorley Borough Council,http://statistics.data.gov.uk/id/local-authority/30UE,Unapportionable Central OHeads,1009,Policy & Governance,Tools & Equipment - Purchase,40003,"Equipment, Furniture & Materia",5023,"As per quote 25601, Supply of various light bulbs. 22/01/21, Total 333.36",26/02/2021,0152909,277.80,Revenue,Chorley Electrical Traders Ltd,16330,,
Chorley Borough Council,http://statistics.data.gov.uk/id/local-authority/30UE,Central Support Services,1009,Early Intervention,Children's Activities,40188,Miscellaneous Expenses,5034,"Lancashire Breaktime Care by Inspire Youth Zone, October Term Time, total 1417.00",05/02/2021,0152866,"1,417.00",Revenue,Chorley Youth Zone,77339,,
Chorley Borough Council,http://statistics.data.gov.uk/id/local-authority/30UE,Central Support Services,1009,Early Intervention,Children's Activities,40188,Miscellaneous Expenses,5034,"Lancashire Breaktime Respite Care by Inspire Youth Zone, November 2020 Term Time",05/02/2021,0152867,"1,415.50",Revenue,Chorley Youth Zone,77339,,
Chorley Borough Council,http://statistics.data.gov.uk/id/local-authority/30UE,Central Support Services,1009,Early Intervention,Children's Activities,40188,Miscellaneous Expenses,5034,"Lancashire Breaktime Respite Care by Inspire Youth Zone, September Term Time, Total 1399.50",05/02/2021,0152868,"1,399.50",Revenue,Chorley Youth Zone,77339,,
Chorley Borough Council,http://statistics.data.gov.uk/id/local-authority/30UE,Democratic Represent and  Mgnt,1007,Policy & Governance,Grants To Other Organisations,40127,Grants and Subscriptions,5031,Cllr Comm Grant,10/02/2021,0152955,300.00,Revenue,Chorley`s Angels Community Group,63882,,
Chorley Borough Council,http://statistics.data.gov.uk/id/local-authority/30UE,Business Support,1095,Commercial Services,Fixtures & Fittings - Purchase,20027,Fixtures and Fittings,5010,"Provision, servicing & storage  of 1 cone tree for Market Walk 1700 tree",24/02/2021,0153264,"1,700.00",Revenue,City Illuminations Ltd,77388,,
Chorley Borough Council,http://statistics.data.gov.uk/id/local-authority/30UE,Business Support,1095,Commercial Services,Furniture - Maintenance,40014,"Equipment, Furniture & Materia",5023,Annual servicing of the tree,24/02/2021,0153264,250.00,Revenue,City Illuminations Ltd,77388,,
Chorley Borough Council,http://statistics.data.gov.uk/id/local-authority/30UE,Economic Development,1096,Commercial Services,Christmas Lights,40179,Miscellaneous Expenses,5034,Chorley Christmas light Pole features 5 off / festoon/floods/lamps/strobes/led swirls on columns / Reindeer (2 male plus 2 female),17/02/2021,0153297,"1,500.00",Revenue,City Illuminations Ltd,77388,,
Chorley Borough Council,http://statistics.data.gov.uk/id/local-authority/30UE,Service Management & Support,1009,Customer & Digital,Supplies-Grounds Maintenance,40025,"Equipment, Furniture & Materia",5023,"Thawrox 28 tons @ 40.21 per ton, Delivered to Chorley Council, Bengal Street Depot, PR7 1SA",03/02/2021,0152903,"1,153.22",Revenue,Compass Minerals UK Ltd,18087,,
Chorley Borough Council,http://statistics.data.gov.uk/id/local-authority/30UE,Capital,Capital,Commercial Services,Main Contractor,03007,Capital Expenditure,Capital,"General electrical repairs to bring the building up to standard, Approved by NAME REDACTED, All Seasons, Brinscall",17/02/2021,0152436,"1,410.03",Capital,Corlett Electrical Eng Co Ltd,16271,,
Chorley Borough Council,http://statistics.data.gov.uk/id/local-authority/30UE,Central Support Services,1009,Commercial Services,Planned Maintenance,20006,Repairs Maintenance & Alts,5005,PPM blanket order,03/02/2021,0152508,"1,430.00",Revenue,Corlett Electrical Eng Co Ltd,16271,,
Chorley Borough Council,http://statistics.data.gov.uk/id/local-authority/30UE,Central Support Services,1009,Commercial Services,Planned Maintenance,20006,Repairs Maintenance & Alts,5005,PPM blanket order,05/02/2021,0152989,"2,137.60",Revenue,Corlett Electrical Eng Co Ltd,16271,,
Chorley Borough Council,http://statistics.data.gov.uk/id/local-authority/30UE,Unapportionable Central OHeads,1009,Commercial Services,General Repairs - Reactive,20004,Repairs Maintenance & Alts,5005,Reactive Blanket,17/02/2021,0153106,312.76,Revenue,Corlett Electrical Eng Co Ltd,16271,,
Chorley Borough Council,http://statistics.data.gov.uk/id/local-authority/30UE,Recreation & Sport,1037,Commercial Services,Planned Maintenance,20006,Repairs Maintenance & Alts,5005,"Clayton Green, Statutory 5 yearly test and inspection",17/02/2021,0153351,"2,946.00",Revenue,Corlett Electrical Eng Co Ltd,16271,,
Chorley Borough Council,http://statistics.data.gov.uk/id/local-authority/30UE,Capital,Capital,Commercial Services,Main Contractor,03007,Capital Expenditure,Capital,"Install 2 consumer units and a socket at Moss Lane for CCTV, Joint works with South Ribble",17/02/2021,0153387,525.00,Capital,Corlett Electrical Eng Co Ltd,16271,,
Chorley Borough Council,http://statistics.data.gov.uk/id/local-authority/30UE,Capital,Capital,Policy & Governance,Other Contractor,03012,Capital Expenditure,Capital,Astley Hall order as arranged with NAME REDACTED. 1000 A6 postcards; 2000 Jumbo postcards; 96 Will bears; 576 mugs,10/02/2021,0152856,"7,016.62",Capital,Cornflower Ltd,80936,,
Chorley Borough Council,http://statistics.data.gov.uk/id/local-authority/30UE,Capital,Capital,Policy & Governance,Other Contractor,03012,Capital Expenditure,Capital,Astley Hall order as arranged with NAME REDACTED. 1000 A6 postcards; 2000 Jumbo postcards; 96 Will bears; 576 mugs,10/02/2021,0152869,396.00,Capital,Cornflower Ltd,80936,,
Chorley Borough Council,http://statistics.data.gov.uk/id/local-authority/30UE,Central Support Services,1009,Customer & Digital,Computer Equipment-Purchase,40098,Communication and Computing,5028,"Jabra Panacast Camera, Carriage - Standard Delivery & Packaging",12/02/2021,0151512,507.54,Revenue,Corporte Direct (Europe) Ltd (Trading as Corptel),22135,,
Chorley Borough Council,http://statistics.data.gov.uk/id/local-authority/30UE,Corporate Management,1008,Policy & Governance,Miscellaneous Expenses,40200,Miscellaneous Expenses,5034,Hire of 8 portable hand wash stations from 11th January to 7th February 2021 (4 weeks). Invoice number 3123.,19/02/2021,0153410,"1,440.00",Revenue,Cyril Unsworth Ltd,78887,,
Chorley Borough Council,http://statistics.data.gov.uk/id/local-authority/30UE,Recreation & Sport,1037,Early Intervention,External Contractor,40198,Miscellaneous Expenses,5034,LLS Est Fee,12/02/2021,0153211,453.50,Revenue,Debit Finance Collections Plc T/A Legend Software,80920,,
Chorley Borough Council,http://statistics.data.gov.uk/id/local-authority/30UE,Building Control,1090,Customer & Digital,Agency Staff,13000,Direct Employee Expenses,5001,Agency Fees for NAME REDACTED Building Control Officer plus travel costs wk ending 08.01.2021 21.75hrs invoice 00138509,10/02/2021,0152563,"1,161.30",Revenue,Deekay Technical Recruit Ltd,17160,,
Chorley Borough Council,http://statistics.data.gov.uk/id/local-authority/30UE,Building Control,1090,Customer & Digital,Agency Staff,13000,Direct Employee Expenses,5001,Agency fees for NAME REDACTED Building Control Officer plus travel costs wk ending 15.01.2021 21.75hrs invoice 00138639,10/02/2021,0152572,"1,162.65",Revenue,Deekay Technical Recruit Ltd,17160,,
Chorley Borough Council,http://statistics.data.gov.uk/id/local-authority/30UE,Building Control,1090,Customer & Digital,Agency Staff,13000,Direct Employee Expenses,5001,"Agency Fees for NAME REDACTED Building Control Officer ends 02.04.2021, 21.75hrs per week plus travel costs",10/02/2021,0153068,"1,164.45",Revenue,Deekay Technical Recruit Ltd,17160,,
Chorley Borough Council,http://statistics.data.gov.uk/id/local-authority/30UE,Building Control,1090,Customer & Digital,Agency Staff,13000,Direct Employee Expenses,5001,"Agency Fees for NAME REDACTED Building Control Officer ends 02.04.2021, 21.75hrs per week plus travel costs",10/02/2021,0153093,"1,152.75",Revenue,Deekay Technical Recruit Ltd,17160,,
Chorley Borough Council,http://statistics.data.gov.uk/id/local-authority/30UE,Building Control,1090,Customer & Digital,Agency Staff,13000,Direct Employee Expenses,5001,"Agency Fees for NAME REDACTED Building Control Officer ends 02.04.2021, 21.75hrs per week plus travel costs",19/02/2021,0153409,"1,162.20",Revenue,Deekay Technical Recruit Ltd,17160,,
Chorley Borough Council,http://statistics.data.gov.uk/id/local-authority/30UE,Control Accounts,Control,Policy & Governance,General Balances,00100,Balance Sheet,Balance,CMS,26/02/2021,0153706,450.58,Revenue,Department for Work and Pensions,80469,,
Chorley Borough Council,http://statistics.data.gov.uk/id/local-authority/30UE,Central Support Services,1009,Customer & Digital,Consultants` Fees,40077,Services,5027,Academy / I@W integration 4 days @ 400 per day,03/02/2021,0152757,"1,600.00",Revenue,EDM Consulting Ltd,55511,,
Chorley Borough Council,http://statistics.data.gov.uk/id/local-authority/30UE,Capital,Capital,Commercial Services,Main Contractor,03007,Capital Expenditure,Capital,"Astley Coach House ground floor room, Repair missing plaster work to each side, ensure both top and bottom tie up WW08",05/02/2021,0152986,"2,754.70",Capital,EFT Construction,78195,,
Chorley Borough Council,http://statistics.data.gov.uk/id/local-authority/30UE,Unapportionable Central OHeads,1009,Commercial Services,General Repairs - Reactive,20004,Repairs Maintenance & Alts,5005,General building reactive repairs blanket,24/02/2021,0153544,332.50,Revenue,EFT Construction,78195,,
Chorley Borough Council,http://statistics.data.gov.uk/id/local-authority/30UE,Central Support Services,1009,Commercial Services,Other Contributions,40145,Grants and Subscriptions,5031,The charges for provision of a new or existing Electricity North West Distribution Substation and associated infrastructure,17/02/2021,0153266,"167,569.08",Revenue,Electricity North West Ltd,17118,,
Chorley Borough Council,http://statistics.data.gov.uk/id/local-authority/30UE,Corporate Management,1008,Early Intervention,Grants to Voluntary Organisations,40124,Grants and Subscriptions,5031,organisations health protect,19/02/2021,0153286,"2,000.00",Revenue,Emerging Futures,81216,,
Chorley Borough Council,http://statistics.data.gov.uk/id/local-authority/30UE,Business Support,1095,Commercial Services,Internet Charges,40104,Communication and Computing,5028,"Connect Service Growth Edition: software charge, cloud primary circuit, cloud backup circuit, allocated inte",05/02/2021,0152917,"3,810.00",Revenue,Essensys Ltd,77836,,
Chorley Borough Council,http://statistics.data.gov.uk/id/local-authority/30UE,Unapportionable Central OHeads,1009,Customer & Digital,Professional Fees,14011,Direct Employee Expenses,5001,Bank Wizard Annual Licence,24/02/2021,0153528,"4,094.39",Revenue,Experian Limited,17797,,
Chorley Borough Council,http://statistics.data.gov.uk/id/local-authority/30UE,Central Support Services,1009,Customer & Digital,Unitary Payment(S),50009,Private Contractors,5042,Provision of waste and recycling collection services 2020-2021,03/02/2021,0152760,"188,530.00",Revenue,FCC Environment Services (UK) Limited,77903,,
Chorley Borough Council,http://statistics.data.gov.uk/id/local-authority/30UE,Corporate Management,1008,Policy & Governance,Professional Fees,40063,Services,5027,Amendment of Shared Services Agreement between Chorley Borough Council and South Ribble Council (September 2020),10/02/2021,0152152,750.00,Revenue,Forbes Solicitors,17527,,
Chorley Borough Council,http://statistics.data.gov.uk/id/local-authority/30UE,Corporate Management,1008,Policy & Governance,Professional Fees,40063,Services,5027,Amendment of Shared Services Agreement between Chorley Borough Council and South Ribble Council (October 2020),10/02/2021,0152153,"1,000.00",Revenue,Forbes Solicitors,17527,,
Chorley Borough Council,http://statistics.data.gov.uk/id/local-authority/30UE,Unapportionable Central OHeads,1009,Policy & Governance,Processional Routes,40177,Miscellaneous Expenses,5034,Band to play at Chorley`s Remembrance Sunday Service at the Cenotaph in Astley Park on 10/11/19. Bugler for the Last Post,19/02/2021,0142881,600.00,Revenue,Formby Band,77694,,
Chorley Borough Council,http://statistics.data.gov.uk/id/local-authority/30UE,Economic Development,1096,Commercial Services,Professional Fees,40063,Services,5027,Replacement lighting covered market,03/02/2021,0151368,"2,919.87",Revenue,Fox Contractors Limited,81125,,
Chorley Borough Council,http://statistics.data.gov.uk/id/local-authority/30UE,Economic Development,1096,Commercial Services,Professional Fees,40063,Services,5027,Replacement lighting covered market,05/02/2021,0152951,"6,813.02",Revenue,Fox Contractors Limited,81125,,
Chorley Borough Council,http://statistics.data.gov.uk/id/local-authority/30UE,Business Support,1095,Commercial Services,Gas,20014,Energy Costs,5006,1/12/19 to 31/12/19,17/02/2021,0153177,502.64,Revenue,Gazprom Energy,56502,,
Chorley Borough Council,http://statistics.data.gov.uk/id/local-authority/30UE,Business Support,1095,Commercial Services,Gas,20014,Energy Costs,5006,1/2/20 to 29/2/20,17/02/2021,0153178,453.58,Revenue,Gazprom Energy,56502,,
Chorley Borough Council,http://statistics.data.gov.uk/id/local-authority/30UE,Business Support,1095,Commercial Services,Gas,20014,Energy Costs,5006,1/12/20 to 31/12/20,17/02/2021,0153179,472.66,Revenue,Gazprom Energy,56502,,
Chorley Borough Council,http://statistics.data.gov.uk/id/local-authority/30UE,Business Support,1095,Commercial Services,Gas,20014,Energy Costs,5006,1/3/20 to 31/3/20,17/02/2021,0153180,408.50,Revenue,Gazprom Energy,56502,,
Chorley Borough Council,http://statistics.data.gov.uk/id/local-authority/30UE,Business Support,1095,Commercial Services,Gas,20014,Energy Costs,5006,1/1/21 - 31/1/21,17/02/2021,0153287,496.29,Revenue,Gazprom Energy,56502,,
Chorley Borough Council,http://statistics.data.gov.uk/id/local-authority/30UE,Economic Development,1096,Commercial Services,Professional Fees,40063,Services,5027,Covered Market Refurbishment & Upgrade Works to progress & complete delivery of the covered market improvements,05/02/2021,0152853,150.00,Revenue,Gosling Construction Services,78380,,
Chorley Borough Council,http://statistics.data.gov.uk/id/local-authority/30UE,Economic Development,1096,Commercial Services,Professional Fees,40063,Services,5027,"Preparation of enquiry documents, Identification of a suitable tender list for each package, Management of the tender process",05/02/2021,0152853,"4,200.00",Revenue,Gosling Construction Services,78380,,
Chorley Borough Council,http://statistics.data.gov.uk/id/local-authority/30UE,Economic Development,1096,Commercial Services,Professional Fees,40063,Services,5027,"Detailed Planning & Logistics, Development of a detailed works programme including all necessary updates as works proceed",05/02/2021,0152853,600.00,Revenue,Gosling Construction Services,78380,,
Chorley Borough Council,http://statistics.data.gov.uk/id/local-authority/30UE,Economic Development,1096,Commercial Services,Professional Fees,40063,Services,5027,"Support the Architect in the submission of a Planning & Building Control application, Identify opportunities to generate best value",05/02/2021,0152853,300.00,Revenue,Gosling Construction Services,78380,,
Chorley Borough Council,http://statistics.data.gov.uk/id/local-authority/30UE,Central Support Services,1009,Commercial Services,Consultants` Fees,40077,Services,5027,Works carried out at Buzz Bingo site,12/02/2021,0153215,"1,056.25",Revenue,Gosling Construction Services,78380,,
Chorley Borough Council,http://statistics.data.gov.uk/id/local-authority/30UE,Central Support Services,1009,Commercial Services,Survey Expenses,40069,Services,5027,Setting out Surveys,10/02/2021,0153226,562.20,Revenue,Gosling Construction Services,78380,,
Chorley Borough Council,http://statistics.data.gov.uk/id/local-authority/30UE,Central Support Services,1009,Customer & Digital,Computer - Support Services,40111,Communication and Computing,5028,"Goss - Content Live Environment, Content Test Environment, Development Licence, Forms, Content Bundle, Forms Level 1, 2, 3",24/02/2021,0148164,"7,440.00",Revenue,GOSS Interactive Limited,20316,,
Chorley Borough Council,http://statistics.data.gov.uk/id/local-authority/30UE,Central Support Services,1009,Customer & Digital,Computer - Support Services,40111,Communication and Computing,5028,"Goss - Content Live Environment, Content Test Environment, Development Licence, Forms, Content Bundle, Forms Level 1, 2, 3",24/02/2021,0149416,"42,852.00",Revenue,GOSS Interactive Limited,20316,,
Chorley Borough Council,http://statistics.data.gov.uk/id/local-authority/30UE,Central Support Services,1009,Customer & Digital,Computer - Support Services,40111,Communication and Computing,5028,"Goss - Content Live Environment, Content Test Environment, Development Licence, Forms, Content Bundle, Forms Level 1, 2, 3",24/02/2021,0150779,"16,680.00",Revenue,GOSS Interactive Limited,20316,,
Chorley Borough Council,http://statistics.data.gov.uk/id/local-authority/30UE,Central Support Services,1009,Customer & Digital,Vandalism Repairs,20005,Repairs Maintenance & Alts,5005,Graffiti removal contract December 2020 ongoing,10/02/2021,0152870,895.00,Revenue,Graffiti Away Ltd,78340,,
Chorley Borough Council,http://statistics.data.gov.uk/id/local-authority/30UE,Central Support Services,1009,Customer & Digital,Vandalism Repairs,20005,Repairs Maintenance & Alts,5005,Graffiti removal contract December 2020 ongoing,24/02/2021,0153310,475.00,Revenue,Graffiti Away Ltd,78340,,
Chorley Borough Council,http://statistics.data.gov.uk/id/local-authority/30UE,Corporate Management,1008,Commercial Services,Publicity - Advertising,40157,Miscellaneous Expenses,5034,"Social Media for Market Walk, Chorley. July 2020 - March 2021 @500 per month, Total 4500 + VAT",05/02/2021,0152765,500.00,Revenue,Gravity,77837,,
Chorley Borough Council,http://statistics.data.gov.uk/id/local-authority/30UE,Capital,Capital,Commercial Services,Main Contractor,03007,Capital Expenditure,Capital,"Site Specific RAMS, logistics plan, Prelims: Supervision, Welfare, Segregation, Protection, Signage, Asbestos enclosures",17/02/2021,0152906,"89,730.94",Capital,Greenfield Removals Limited,78440,,
Chorley Borough Council,http://statistics.data.gov.uk/id/local-authority/30UE,Unapportionable Central OHeads,1009,Customer & Digital,Professional Fees,14011,Direct Employee Expenses,5001,"Professional charges, Matter No: L0001286, Debtor Name: NAME REDACTED",24/02/2021,0153529,750.00,Revenue,Greenhalgh Kerr,77764,,
Chorley Borough Council,http://statistics.data.gov.uk/id/local-authority/30UE,Open Spaces,1038,Early Intervention,Supplies-Grounds Maintenance,40025,"Equipment, Furniture & Materia",5023,Design and installation of play area refurbishment at Manor Road,17/02/2021,0153098,"50,000.00",Revenue,Hags Smp LTD,22492,,
Chorley Borough Council,http://statistics.data.gov.uk/id/local-authority/30UE,Unapportionable Central OHeads,1009,Customer & Digital,Service Fees,40056,Services,5027,Annual Subscription to HBinfo service until 31 March 2022,10/02/2021,0153214,450.00,Revenue,Hbinfo Ltd,19710,,
Chorley Borough Council,http://statistics.data.gov.uk/id/local-authority/30UE,Corporate Management,1008,Early Intervention,Grants to Voluntary Organisations,40124,Grants and Subscriptions,5031,organisations health protection,19/02/2021,0153288,"10,320.00",Revenue,Help The Homeless (Chorley),16716,,
Chorley Borough Council,http://statistics.data.gov.uk/id/local-authority/30UE,Corporate Management,1008,Early Intervention,Grants to Voluntary Organisations,40124,Grants and Subscriptions,5031,organisations health protection,19/02/2021,0153289,"25,080.00",Revenue,Help The Homeless (Chorley),16716,,
Chorley Borough Council,http://statistics.data.gov.uk/id/local-authority/30UE,Capital,Capital,Commercial Services,Main Contractor,03007,Capital Expenditure,Capital,Astley Hall Sample window,03/02/2021,0152756,820.60,Capital,Holme Valley Joinery Ltd,81545,,
Chorley Borough Council,http://statistics.data.gov.uk/id/local-authority/30UE,Central Support Services,1009,Customer & Digital,Consultants` Fees,40077,Services,5027," Discovery and planning 5 days 3,250",03/02/2021,0152782,"3,250.00",Revenue,Hybrit LLP,77925,,
Chorley Borough Council,http://statistics.data.gov.uk/id/local-authority/30UE,Planning Policy,1092,Early Intervention,Professional Fees,40063,Services,5027,Housing Evidence to inform planning,12/02/2021,0152707,"3,275.00",Revenue,Iceni Projects Ltd,77968,,
Chorley Borough Council,http://statistics.data.gov.uk/id/local-authority/30UE,Planning Policy,1092,Early Intervention,Professional Fees,40063,Services,5027,Housing Evidence to inform planning,26/02/2021,0153614,"3,275.00",Revenue,Iceni Projects Ltd,77968,,
Chorley Borough Council,http://statistics.data.gov.uk/id/local-authority/30UE,Elections,1012,Policy & Governance,Service Fees,40056,Services,5027,remote installation of the Telephone Canvass module - canvass reform 2020,03/02/2021,0152871,285.00,Revenue,IDOX Software Limited,17542,,
Chorley Borough Council,http://statistics.data.gov.uk/id/local-authority/30UE,Capital,Capital,Commercial Services,Main Contractor,03007,Capital Expenditure,Capital,"Market Street Redevelopment, Demolition of Former Buzz Bingo and Units 7  11",26/02/2021,0153504,"4,632.00",Capital,Inglenorth (Contracting) Limited,81123,,
Chorley Borough Council,http://statistics.data.gov.uk/id/local-authority/30UE,Corporate Management,1008,Customer & Digital,Clinical Waste Collection,50007,Private Contractors,5042,Provision of service for the collection and disposal of Clinical Waste from domestic properties in the Chorley area.,10/02/2021,0153026,"1,006.64",Revenue,Initial,78488,,
Chorley Borough Council,http://statistics.data.gov.uk/id/local-authority/30UE,Central Support Services,1009,Customer & Digital,Clinical Waste Collection,50007,Private Contractors,5042,Provision of service for the collection and disposal of Clinical Waste from domestic properties in the Chorley area,10/02/2021,0153107,980.86,Revenue,Initial,78488,,
Chorley Borough Council,http://statistics.data.gov.uk/id/local-authority/30UE,Other Short Term Creditors,,Policy & Governance,General Balances,00100,Balance Sheet,Balance,income tax,17/02/2021,0153394,346.80,Revenue,Inland Revenue REDACTED,77147,,
Chorley Borough Council,http://statistics.data.gov.uk/id/local-authority/30UE,Control Accounts,Control,System,Manual Control Account,00001,Balance Sheet,Balance,,10/02/2021,0152322,288.80,Revenue,Inland Revenue REDACTED,17445,,
Chorley Borough Council,http://statistics.data.gov.uk/id/local-authority/30UE,Control Accounts,Control,System,Manual Control Account,00001,Balance Sheet,Balance,,10/02/2021,0152543,"7,336.21",Revenue,Inland Revenue REDACTED,17445,,
Chorley Borough Council,http://statistics.data.gov.uk/id/local-authority/30UE,Control Accounts,Control,System,Manual Control Account,00001,Balance Sheet,Balance,,10/02/2021,0152667,"1,537.72",Revenue,Inland Revenue REDACTED,17445,,
Chorley Borough Council,http://statistics.data.gov.uk/id/local-authority/30UE,Corporate Management,1008,Customer & Digital,Training Course Fees,17010,Indirect Employee Expenses,5002,"Scheme of Delegation, Joint Working and Shared Services Webinar, 23rd February 2021 for NAMES REDACTED",12/02/2021,0153233,260.00,Revenue,James Button and Co,77064,,
Chorley Borough Council,http://statistics.data.gov.uk/id/local-authority/30UE,Democratic Represent and  Mgnt,1007,Customer & Digital,Member Development Programme,17007,Indirect Employee Expenses,5002,"Scheme of Delegation, Joint Working and Shared Services Webinar, 23rd February 2021 for NAME REDACTED",12/02/2021,0153233,130.00,Revenue,James Button and Co,77064,,
Chorley Borough Council,http://statistics.data.gov.uk/id/local-authority/30UE,Service Management & Support,1009,Customer & Digital,Grounds Maintenance Contractor,20043,Grounds Maintenance Costs,5013,30 @ 3.6m x 75mm x 75mm green timber,10/02/2021,0153155,215.54,Revenue,John H Mayor & Sons Ltd,16635,,
Chorley Borough Council,http://statistics.data.gov.uk/id/local-authority/30UE,Service Management & Support,1009,Customer & Digital,Grounds Maintenance Contractor,20043,Grounds Maintenance Costs,5013,50 knee rail straps ( 75mm ),10/02/2021,0153155,47.00,Revenue,John H Mayor & Sons Ltd,16635,,
Chorley Borough Council,http://statistics.data.gov.uk/id/local-authority/30UE,Development Control,1091,Customer & Digital,Statutory Notices,40160,Miscellaneous Expenses,5034,Planning Public Notices to appear in the Chorley Guardian April 2020 to March 2021,03/02/2021,0152007,527.28,Revenue,JPI Media - Johnston Publishing Ltd,20072,,
Chorley Borough Council,http://statistics.data.gov.uk/id/local-authority/30UE,Development Control,1091,Customer & Digital,Statutory Notices,40160,Miscellaneous Expenses,5034,Planning Public Notices to appear in the Chorley Guardian April 2020 to March 2021,03/02/2021,0152595,912.60,Revenue,JPI Media - Johnston Publishing Ltd,20072,,
Chorley Borough Council,http://statistics.data.gov.uk/id/local-authority/30UE,Capital,Capital,Early Intervention,Grants,03002,Capital Expenditure,Capital,ADDRESS REDACTED,03/02/2021,0152924,"4,120.00",Capital,K Berry Ltd,16421,,
Chorley Borough Council,http://statistics.data.gov.uk/id/local-authority/30UE,Capital,Capital,Commercial Services,Main Contractor,03007,Capital Expenditure,Capital,Additional electrical works required at All Seasons as requested by NAME REDACTED,17/02/2021,0153265,"5,888.11",Capital,KDE Limited,78418,,
Chorley Borough Council,http://statistics.data.gov.uk/id/local-authority/30UE,Capital,Capital,Commercial Services,Main Contractor,03007,Capital Expenditure,Capital,"Clayton Green Sports Centre, Works requested by NAMES REDACTED, To isolate and remove defective lighting",17/02/2021,0153311,"3,625.47",Capital,KDE Limited,78418,,
Chorley Borough Council,http://statistics.data.gov.uk/id/local-authority/30UE,Service Management & Support,1009,Customer & Digital,Protective Clothing,40040,"Clothing, Uniforms and Laundry",5025,"Yellow HI-Vis � length - Portwest S460 traffic jacket,   to EN471 Class 3, EN343 Class 3",03/02/2021,0152872,290.34,Revenue,Key Engineering & Hygene Supplies,51615,,
Chorley Borough Council,http://statistics.data.gov.uk/id/local-authority/30UE,Service Management & Support,1009,Customer & Digital,Protective Clothing,40040,"Clothing, Uniforms and Laundry",5025,"UC715-Business shirt, long sleeved, light blue, button down collar   c/w Chorley Council full colour version logo embroidered",26/02/2021,0153159,463.43,Revenue,Key Engineering & Hygene Supplies,51615,,
Chorley Borough Council,http://statistics.data.gov.uk/id/local-authority/30UE,Service Management & Support,1009,Customer & Digital,Protective Clothing,40040,"Clothing, Uniforms and Laundry",5025,,26/02/2021,0153159,10.62,Revenue,Key Engineering & Hygene Supplies,51615,,
Chorley Borough Council,http://statistics.data.gov.uk/id/local-authority/30UE,Corporate Management,1008,Customer & Digital,Miscellaneous Expenses,40200,Miscellaneous Expenses,5034,6x Pelican pump @ 2.36each,26/02/2021,0153699,14.16,Revenue,Key Engineering & Hygene Supplies,51615,,
Chorley Borough Council,http://statistics.data.gov.uk/id/local-authority/30UE,Corporate Management,1008,Customer & Digital,Miscellaneous Expenses,40200,Miscellaneous Expenses,5034,"Nitrile Disposable gloves 200per box @ 22.10 each, 10x Large, 10x  X Large",26/02/2021,0153699,442.00,Revenue,Key Engineering & Hygene Supplies,51615,,
Chorley Borough Council,http://statistics.data.gov.uk/id/local-authority/30UE,Central Support Services,1009,Early Intervention,Pest Control,20039,Cleaning and Domestic Supplies,5012,Annual Pest Supplies,03/02/2021,0152832,282.87,Revenue,Killgerm Chemicals Ltd,16879,,
Chorley Borough Council,http://statistics.data.gov.uk/id/local-authority/30UE,Central Support Services,1009,Early Intervention,Pest Control,20039,Cleaning and Domestic Supplies,5012,Annual Pest Supplies,10/02/2021,0152920,268.20,Revenue,Killgerm Chemicals Ltd,16879,,
Chorley Borough Council,http://statistics.data.gov.uk/id/local-authority/30UE,Development Control,1091,Customer & Digital,Legal Fees,40171,Miscellaneous Expenses,5034,Legal advice on planning enforcement matters relating to land near South Lodge Wigan Road,03/02/2021,0152902,"2,250.00",Revenue,Killian Garvey,81544,,
Chorley Borough Council,http://statistics.data.gov.uk/id/local-authority/30UE,Central Support Services,1009,Commercial Services,Legal Fees,40171,Miscellaneous Expenses,5034,"Tatton Stopping Up Inquiry, Counsel�s fees for the Inquiry, meet, review of Curtins POE: Pre Inquiry Meeting, Review of proof",24/02/2021,0153407,500.00,Revenue,Killian Garvey,81544,,
Chorley Borough Council,http://statistics.data.gov.uk/id/local-authority/30UE,Open Spaces,1038,Early Intervention,Supplies-Grounds Maintenance,40025,"Equipment, Furniture & Materia",5023,"EN23480 Jubilee Equip. Cocowave and Triple somersault bars, supply and install. Install only of rotabounce. RPii inspection.",10/02/2021,0152590,"6,498.40",Revenue,Kompan,61460,,
Chorley Borough Council,http://statistics.data.gov.uk/id/local-authority/30UE,Democratic Represent and  Mgnt,1007,Early Intervention,Supplies-Grounds Maintenance,40025,"Equipment, Furniture & Materia",5023,"EN23480 Jubilee Equip. Cocowave and Triple somersault bars, supply and install. Install only of rotabounce. RPii inspection.",05/02/2021,0152894,"3,056.40",Revenue,Kompan,61460,,
Chorley Borough Council,http://statistics.data.gov.uk/id/local-authority/30UE,Control Accounts,Control,Policy & Governance,General Balances,00100,Balance Sheet,Balance,Monthly deds from Expenses,26/02/2021,0153705,"1,422.47",Revenue,Labour Councillors Association,17577,,
Chorley Borough Council,http://statistics.data.gov.uk/id/local-authority/30UE,Capital,Capital,Early Intervention,Grants,03002,Capital Expenditure,Capital,ADDRESS REDACTED,03/02/2021,0152826,"5,163.00",Capital,Lancashire County Council,17758,,
Chorley Borough Council,http://statistics.data.gov.uk/id/local-authority/30UE,Capital,Capital,Early Intervention,Grants,03002,Capital Expenditure,Capital,ADDRESS REDACTED,03/02/2021,0152827,"6,661.00",Capital,Lancashire County Council,17758,,
Chorley Borough Council,http://statistics.data.gov.uk/id/local-authority/30UE,Capital,Capital,Early Intervention,Grants,03002,Capital Expenditure,Capital,ADDRESS REDACTED,03/02/2021,0152829,"7,400.00",Capital,Lancashire County Council,17758,,
Chorley Borough Council,http://statistics.data.gov.uk/id/local-authority/30UE,Capital,Capital,Early Intervention,Grants,03002,Capital Expenditure,Capital,ADDRESS REDACTED,03/02/2021,0152830,"7,250.00",Capital,Lancashire County Council,17758,,
Chorley Borough Council,http://statistics.data.gov.uk/id/local-authority/30UE,Parking Services,1066,Commercial Services,Miscellaneous Expenses,40200,Miscellaneous Expenses,5034,"Town Centre TRO revisions: New signage/ poles/ lining and traffic management, Legal Costs",05/02/2021,0152874,"4,000.00",Revenue,Lancashire County Council,20027,,
Chorley Borough Council,http://statistics.data.gov.uk/id/local-authority/30UE,Capital,Capital,Early Intervention,Grants,03002,Capital Expenditure,Capital,ADDRESS REDACTED,10/02/2021,0153175,"6,833.28",Capital,Lancashire County Council,17758,,
Chorley Borough Council,http://statistics.data.gov.uk/id/local-authority/30UE,Capital,Capital,Early Intervention,Grants,03002,Capital Expenditure,Capital,ADDRESS REDACTED,19/02/2021,0153319,"3,442.00",Capital,Lancashire County Council,17758,,
Chorley Borough Council,http://statistics.data.gov.uk/id/local-authority/30UE,Capital,Capital,Early Intervention,Grants,03002,Capital Expenditure,Capital,ADDRESS REDACTED,19/02/2021,0153320,"7,093.00",Capital,Lancashire County Council,17758,,
Chorley Borough Council,http://statistics.data.gov.uk/id/local-authority/30UE,Capital,Capital,Early Intervention,Grants,03002,Capital Expenditure,Capital,ADDRESS REDACTED,19/02/2021,0153321,"1,220.99",Capital,Lancashire County Council,17758,,
Chorley Borough Council,http://statistics.data.gov.uk/id/local-authority/30UE,Capital,Capital,Early Intervention,Grants,03002,Capital Expenditure,Capital,ADDRESS REDACTED,24/02/2021,0153437,"7,176.00",Capital,Lancashire County Council,17758,,
Chorley Borough Council,http://statistics.data.gov.uk/id/local-authority/30UE,Unapportionable Central OHeads,1009,Commercial Services,Planned Maintenance,20006,Repairs Maintenance & Alts,5005,PPM Blanket,17/02/2021,0152285,"2,128.00",Revenue,Lancashire Gas Services Ltd,78192,,
Chorley Borough Council,http://statistics.data.gov.uk/id/local-authority/30UE,Central Support Services,1009,Commercial Services,General Repairs - Reactive,20004,Repairs Maintenance & Alts,5005,Reactive blanket,17/02/2021,0152298,907.25,Revenue,Lancashire Gas Services Ltd,78192,,
Chorley Borough Council,http://statistics.data.gov.uk/id/local-authority/30UE,Capital,Capital,Commercial Services,Main Contractor,03007,Capital Expenditure,Capital,"All Seasons Leisure Centre, Works to include: Supply and install 2 x new combustion fan units, 1 x new ignition cont",17/02/2021,0153122,"2,645.83",Capital,Lancashire Gas Services Ltd,78192,,
Chorley Borough Council,http://statistics.data.gov.uk/id/local-authority/30UE,Central Support Services,1009,Commercial Services,General Repairs - Reactive,20004,Repairs Maintenance & Alts,5005,Reactive blanket,17/02/2021,0153142,307.49,Revenue,Lancashire Gas Services Ltd,78192,,
Chorley Borough Council,http://statistics.data.gov.uk/id/local-authority/30UE,Unapportionable Central OHeads,1009,Commercial Services,Planned Maintenance,20006,Repairs Maintenance & Alts,5005,PPM Blanket,17/02/2021,0153144,294.72,Revenue,Lancashire Gas Services Ltd,78192,,
Chorley Borough Council,http://statistics.data.gov.uk/id/local-authority/30UE,Capital,Capital,Commercial Services,Main Contractor,03007,Capital Expenditure,Capital,"Clayton Green Leisure Centre, As approved by NAMES REDACTED, Water heater Quote, boiler / hot water heater system in",17/02/2021,0153153,"10,600.00",Capital,Lancashire Gas Services Ltd,78192,,
Chorley Borough Council,http://statistics.data.gov.uk/id/local-authority/30UE,Recreation & Sport,1037,Commercial Services,General Repairs - Reactive,20004,Repairs Maintenance & Alts,5005,"All Seasons, Repair pump 2 on LC AHU",17/02/2021,0153369,"1,364.96",Revenue,Lancashire Gas Services Ltd,78192,,
Chorley Borough Council,http://statistics.data.gov.uk/id/local-authority/30UE,Unapportionable Central OHeads,1009,Commercial Services,General Repairs - Reactive,20004,Repairs Maintenance & Alts,5005,Reactive blanket,24/02/2021,0153377,275.36,Revenue,Lancashire Gas Services Ltd,78192,,
Chorley Borough Council,http://statistics.data.gov.uk/id/local-authority/30UE,Corporate Management,1008,Commercial Services,Miscellaneous Expenses,40200,Miscellaneous Expenses,5034,"Collection & delivery to site, Stand alone hand sanitizer units",19/02/2021,0153424,"1,426.00",Revenue,Lancashire Gas Services Ltd,78192,,
Chorley Borough Council,http://statistics.data.gov.uk/id/local-authority/30UE,Corporate Management,1008,Commercial Services,Miscellaneous Expenses,40200,Miscellaneous Expenses,5034,install 10 moveable Perspex freestanding screens 1200 x 800,19/02/2021,0153436,"2,253.75",Revenue,Lancashire Gas Services Ltd,78192,,
Chorley Borough Council,http://statistics.data.gov.uk/id/local-authority/30UE,Corporate Management,1008,Commercial Services,Miscellaneous Expenses,40200,Miscellaneous Expenses,5034,Covid screen installation at Clayton Green Sports Centre,19/02/2021,0153438,886.00,Revenue,Lancashire Gas Services Ltd,78192,,
Chorley Borough Council,http://statistics.data.gov.uk/id/local-authority/30UE,Corporate Management,1008,Commercial Services,Miscellaneous Expenses,40200,Miscellaneous Expenses,5034,New covid screen at Cotswold,19/02/2021,0153439,267.50,Revenue,Lancashire Gas Services Ltd,78192,,
Chorley Borough Council,http://statistics.data.gov.uk/id/local-authority/30UE,Capital,Capital,Commercial Services,Main Contractor,03007,Capital Expenditure,Capital,"All Seasons, Install and commission 3 new Calpeda pumps with special shafts, Approved by NAME REDACTED",24/02/2021,0153509,"11,023.75",Capital,Lancashire Gas Services Ltd,78192,,
Chorley Borough Council,http://statistics.data.gov.uk/id/local-authority/30UE,Unapportionable Central OHeads,1009,Policy & Governance,Pensions Increase Act Payments,18005,Indirect Employee Expenses,5002,cay sept 20,26/02/2021,0150961,"17,454.52",Revenue,Lancashire Pensions Services DD ONLY,16696,,
Chorley Borough Council,http://statistics.data.gov.uk/id/local-authority/30UE,Unapportionable Central OHeads,1009,Policy & Governance,Pensions Increase Act Payments,18005,Indirect Employee Expenses,5002,CAY July 20,26/02/2021,0152886,"17,505.21",Revenue,Lancashire Pensions Services DD ONLY,16696,,
Chorley Borough Council,http://statistics.data.gov.uk/id/local-authority/30UE,Unapportionable Central OHeads,1009,Policy & Governance,Pensions Increase Act Payments,18005,Indirect Employee Expenses,5002,CAY June 2020,26/02/2021,0152887,"17,505.21",Revenue,Lancashire Pensions Services DD ONLY,16696,,
Chorley Borough Council,http://statistics.data.gov.uk/id/local-authority/30UE,Other Short Term Creditors,,Policy & Governance,General Balances,00100,Balance Sheet,Balance,EE`s,26/02/2021,0153576,"44,671.69",Revenue,Lancashire Pensions Services DD ONLY,16696,,
Chorley Borough Council,http://statistics.data.gov.uk/id/local-authority/30UE,Other Short Term Creditors,,Policy & Governance,General Balances,00100,Balance Sheet,Balance,EE`s,26/02/2021,0153577,"51,264.69",Revenue,Lancashire Pensions Services DD ONLY,16696,,
Chorley Borough Council,http://statistics.data.gov.uk/id/local-authority/30UE,Other Short Term Creditors,,Policy & Governance,General Balances,00100,Balance Sheet,Balance,EE`s,26/02/2021,0153578,"45,275.11",Revenue,Lancashire Pensions Services DD ONLY,16696,,
Chorley Borough Council,http://statistics.data.gov.uk/id/local-authority/30UE,Other Short Term Creditors,,Policy & Governance,General Balances,00100,Balance Sheet,Balance,EE`s,26/02/2021,0153579,"45,158.81",Revenue,Lancashire Pensions Services DD ONLY,16696,,
Chorley Borough Council,http://statistics.data.gov.uk/id/local-authority/30UE,Unapportionable Central OHeads,1009,Policy & Governance,Pensions Increase Act Payments,18005,Indirect Employee Expenses,5002,CAY DEC 20,26/02/2021,0153627,"17,414.86",Revenue,Lancashire Pensions Services DD ONLY,16696,,
Chorley Borough Council,http://statistics.data.gov.uk/id/local-authority/30UE,Unapportionable Central OHeads,1009,Policy & Governance,Pensions Increase Act Payments,18005,Indirect Employee Expenses,5002,cay jan 21,26/02/2021,0153670,"17,414.86",Revenue,Lancashire Pensions Services DD ONLY,16696,,
Chorley Borough Council,http://statistics.data.gov.uk/id/local-authority/30UE,Unapportionable Central OHeads,1009,Policy & Governance,Pensions Increase Act Payments,18005,Indirect Employee Expenses,5002,cay nov20,26/02/2021,0153671,"17,414.86",Revenue,Lancashire Pensions Services DD ONLY,16696,,
Chorley Borough Council,http://statistics.data.gov.uk/id/local-authority/30UE,Service Management & Support,1009,Customer & Digital,Vehicles and Plant Maintenance,30045,Direct Transport Costs,5016,"As per job Number 5538, PN66RCU - Recovery of Vehicle, Remove rear roll bar and all fittings",03/02/2021,0152900,"4,148.67",Revenue,Lancashire Waste Services,78129,,
Chorley Borough Council,http://statistics.data.gov.uk/id/local-authority/30UE,Precepts and Collection Fund,Precepts,Policy & Governance,LCFA Precept,02011,Precepts & Collection Fund,Precept,LCFA council tax precept,26/02/2021,0152883,"268,413.00",Revenue,Lancs Combined Fire Authority,17768,,
Chorley Borough Council,http://statistics.data.gov.uk/id/local-authority/30UE,Collection Fund Revenue Accoun,,Policy & Governance,NNDR Fire Share,02037,Precepts & Collection Fund,Precept,LCFA business rates precept,26/02/2021,0152883,"24,488.00",Revenue,Lancs Combined Fire Authority,17768,,
Chorley Borough Council,http://statistics.data.gov.uk/id/local-authority/30UE,Precepts and Collection Fund,Precepts,Policy & Governance,LCFA Precept,02011,Precepts & Collection Fund,Precept,LCFA council tax precept,26/02/2021,0152921,"268,413.00",Revenue,Lancs Combined Fire Authority,17768,,
Chorley Borough Council,http://statistics.data.gov.uk/id/local-authority/30UE,Collection Fund Revenue Accoun,,Policy & Governance,NNDR Fire Share,02037,Precepts & Collection Fund,Precept,LCFA busines rates precept,26/02/2021,0152921,"24,488.00",Revenue,Lancs Combined Fire Authority,17768,,
Chorley Borough Council,http://statistics.data.gov.uk/id/local-authority/30UE,Precepts and Collection Fund,Precepts,Policy & Governance,LCFA Precept,02011,Precepts & Collection Fund,Precept,LCFA Council Tax Precept,26/02/2021,0153493,"268,413.00",Revenue,Lancs Combined Fire Authority,17768,,
Chorley Borough Council,http://statistics.data.gov.uk/id/local-authority/30UE,Collection Fund Revenue Accoun,,Policy & Governance,NNDR Fire Share,02037,Precepts & Collection Fund,Precept,LCFA Business Rates Precept,26/02/2021,0153493,"24,488.00",Revenue,Lancs Combined Fire Authority,17768,,
Chorley Borough Council,http://statistics.data.gov.uk/id/local-authority/30UE,Precepts and Collection Fund,Precepts,Policy & Governance,LCFA Precept,02011,Precepts & Collection Fund,Precept,LCFA council tax precept,26/02/2021,0153511,"268,413.00",Revenue,Lancs Combined Fire Authority,17768,,
Chorley Borough Council,http://statistics.data.gov.uk/id/local-authority/30UE,Collection Fund Revenue Accoun,,Policy & Governance,NNDR Fire Share,02037,Precepts & Collection Fund,Precept,LCFA Business rates precept,26/02/2021,0153511,"24,488.00",Revenue,Lancs Combined Fire Authority,17768,,
Chorley Borough Council,http://statistics.data.gov.uk/id/local-authority/30UE,Central Support Services,1009,Commercial Services,General Repairs - Reactive,20004,Repairs Maintenance & Alts,5005,Ackhurst Lodge CCTV survey of culvert,26/02/2021,0153694,695.00,Revenue,Lanes Group plc,20269,,
Chorley Borough Council,http://statistics.data.gov.uk/id/local-authority/30UE,Capital,Capital,Early Intervention,Main Contractor,03007,Capital Expenditure,Capital,"106 x 70 Artificial Grass Pitch, Including New Fencing, Hardstanding, Floodlighting and Track Works at Westway Playing Fields",26/02/2021,0153662,"21,051.72",Capital,Lano Sports,80704,,
Chorley Borough Council,http://statistics.data.gov.uk/id/local-authority/30UE,Unapportionable Central OHeads,1009,Policy & Governance,Professional Fees,40063,Services,5027,PS Tax Subscription Renewal for Chorley and South Ribble Borough Councils 20/21,03/02/2021,0152833,"5,015.00",Revenue,LAVAT Consulting Ltd,76942,,
Chorley Borough Council,http://statistics.data.gov.uk/id/local-authority/30UE,Recreation & Sport,1037,Early Intervention,Miscellaneous Expenses,40200,Miscellaneous Expenses,5034,Pre Purchased Consultancy Hrs,05/02/2021,0152941,"3,375.00",Revenue,LAVAT Consulting Ltd,76942,,
Chorley Borough Council,http://statistics.data.gov.uk/id/local-authority/30UE,Development Control,1091,Policy & Governance,Car Leasing Payment,14100,Direct Employee Expenses,5001,VIN REDACTED,17/02/2021,0153291,"1,579.33",Revenue,LeasePlan UK Ltd T/A Automotive Leasing,65197,,
Chorley Borough Council,http://statistics.data.gov.uk/id/local-authority/30UE,Capital,Capital,Commercial Services,Other Capital Related Fees,03024,Capital Expenditure,Capital,Phase 2 - New connections or network alterations for Chorley Market Walk Extension,24/02/2021,0153347,"5,907.12",Capital,Leep Electricity Networks Limited,80848,,
Chorley Borough Council,http://statistics.data.gov.uk/id/local-authority/30UE,Capital,Capital,Commercial Services,Other Capital Related Fees,03024,Capital Expenditure,Capital,Phase 1  - New connections / service network alterations for Chorley Market Walk Extension,24/02/2021,0153376,"2,428.62",Capital,Leep Electricity Networks Limited,80848,,
Chorley Borough Council,http://statistics.data.gov.uk/id/local-authority/30UE,Corporate Management,1008,Customer & Digital,Professional Fees,14011,Direct Employee Expenses,5001,Taxi Licensing Driver management Fee 235 @ 4.00 each & DVLA Electronic Fee 12 @  0.60 each invoice 346384 27.10.2020,10/02/2021,0153224,947.20,Revenue,Licence Bureau Limited,71233,,
Chorley Borough Council,http://statistics.data.gov.uk/id/local-authority/30UE,Capital,Capital,Commercial Services,Main Contractor,03007,Capital Expenditure,Capital,Project management services for Astley Hall Restoration project,17/02/2021,0153082,"3,235.00",Capital,Linchpin Ltd,80779,,
Chorley Borough Council,http://statistics.data.gov.uk/id/local-authority/30UE,Corporate Management,1008,Early Intervention,Grants to Voluntary Organisations,40124,Grants and Subscriptions,5031,organisations/health protect,12/02/2021,0153056,"19,152.00",Revenue,Living Waters Storehouse,60925,,
Chorley Borough Council,http://statistics.data.gov.uk/id/local-authority/30UE,Capital,Capital,Policy & Governance,Main Contractor,03007,Capital Expenditure,Capital,As per lighting quote provided for Astley Hall shop. Order and fitting of lighting and electrics at Astley Hall Coach House.,05/02/2021,0152997,"5,542.24",Capital,Lumenata Lighting Ltd,80908,,
Chorley Borough Council,http://statistics.data.gov.uk/id/local-authority/30UE,Central Support Services,1009,Chief Executive,Computer Consumables,40099,Communication and Computing,5028,Black Toner Cartridge for Lexmark T650 printer,10/02/2021,0153193,748.05,Revenue,Lyreco UK Ltd,17623,,
Chorley Borough Council,http://statistics.data.gov.uk/id/local-authority/30UE,Unapportionable Central OHeads,1009,Chief Executive,Stationery,40050,"Printing, Stationery & General",5026, A4 Multi-Punched Plastic Pockets 80 Microns - Pack Of 100,10/02/2021,0153193,3.70,Revenue,Lyreco UK Ltd,17623,,
Chorley Borough Council,http://statistics.data.gov.uk/id/local-authority/30UE,Recreation & Sport,1037,Early Intervention,Printing,40043,"Printing, Stationery & General",5026,"11.085.028 TN-243 CMYK 4@ 35.89, 11.081.071 TN-243 BK 1@129.81",12/02/2021,0153195,273.37,Revenue,Lyreco UK Ltd,17623,,
Chorley Borough Council,http://statistics.data.gov.uk/id/local-authority/30UE,Democratic Represent and  Mgnt,1007,Early Intervention,Stationery,40050,"Printing, Stationery & General",5026,"LYRECO BUDGET PAPER A4, THERMAL TILL ROLL, LYRECO PREMIUM PAD, LYRECO BUDGET SHORTHAND NOTEBOOK",12/02/2021,0153196,365.41,Revenue,Lyreco UK Ltd,17623,,
Chorley Borough Council,http://statistics.data.gov.uk/id/local-authority/30UE,Open Spaces,1038,Customer & Digital,Miscellaneous Expenses,40200,Miscellaneous Expenses,5034,"3 x Tractors and pumps, site from 22/01/21, 1 x Tractor and Pump finishing off, Fuel 18l/hr per tractor",12/02/2021,0153242,"11,524.60",Revenue,M J Davidson Groundworks LTD,81618,,
Chorley Borough Council,http://statistics.data.gov.uk/id/local-authority/30UE,Service Management & Support,1009,Customer & Digital,Grounds Maintenance Contractor,20043,Grounds Maintenance Costs,5013,Walker Tree Services Invoice 53 - Work completed in December 2020.,03/02/2021,0152784,"5,080.00",Revenue,M J Walker,62044,,
Chorley Borough Council,http://statistics.data.gov.uk/id/local-authority/30UE,Service Management & Support,1009,Customer & Digital,Grounds Maintenance Contractor,20043,Grounds Maintenance Costs,5013,Walkers Tree Services work completed 4.1.21 to 11.2.21.,19/02/2021,0153429,"7,600.00",Revenue,M J Walker,62044,,
Chorley Borough Council,http://statistics.data.gov.uk/id/local-authority/30UE,Unapportionable Central OHeads,1009,Policy & Governance,Agency Staff,13000,Direct Employee Expenses,5001,NAME REDACTED,10/02/2021,0152851,471.25,Revenue,Matrix SCM Ltd,22128,,
Chorley Borough Council,http://statistics.data.gov.uk/id/local-authority/30UE,Unapportionable Central OHeads,1009,Policy & Governance,Agency Staff,13000,Direct Employee Expenses,5001,NAME REDACTED,10/02/2021,0153059,471.25,Revenue,Matrix SCM Ltd,22128,,
Chorley Borough Council,http://statistics.data.gov.uk/id/local-authority/30UE,Central Support Services,1009,Policy & Governance,Agency Staff,13000,Direct Employee Expenses,5001,NAME REDACTED,10/02/2021,0153059,272.94,Revenue,Matrix SCM Ltd,22128,,
Chorley Borough Council,http://statistics.data.gov.uk/id/local-authority/30UE,Unapportionable Central OHeads,1009,Commercial Services,Planned Maintenance,20006,Repairs Maintenance & Alts,5005,Blanket PPM,17/02/2021,0153025,841.24,Revenue,Maxigiene Environmental Services Ltd,67160,,
Chorley Borough Council,http://statistics.data.gov.uk/id/local-authority/30UE,Democratic Represent and  Mgnt,1007,Customer & Digital,Supplies-Grounds Maintenance,40025,"Equipment, Furniture & Materia",5023,Deliver 20 tonne of ultitrec to Lower Burgh Meadow ( behind recycling centre ),10/02/2021,0152736,481.12,Revenue,Mc & Ma Stewart (Haulage Ltd),16627,,
Chorley Borough Council,http://statistics.data.gov.uk/id/local-authority/30UE,Open Spaces,1038,Customer & Digital,Supplies-Grounds Maintenance,40025,"Equipment, Furniture & Materia",5023,Deliver 20 tonne of ultitrec to Lower burgh meadow ( behind the recycling centre ).,10/02/2021,0152737,494.02,Revenue,Mc & Ma Stewart (Haulage Ltd),16627,,
Chorley Borough Council,http://statistics.data.gov.uk/id/local-authority/30UE,Open Spaces,1038,Customer & Digital,Supplies-Grounds Maintenance,40025,"Equipment, Furniture & Materia",5023,"20 ton of grade 1 top soil delivered to Grafton St play area, Adlington",10/02/2021,0152743,445.00,Revenue,Mc & Ma Stewart (Haulage Ltd),16627,,
Chorley Borough Council,http://statistics.data.gov.uk/id/local-authority/30UE,Democratic Represent and  Mgnt,1007,Customer & Digital,Supplies-Grounds Maintenance,40025,"Equipment, Furniture & Materia",5023,"20 ton of grade 1 top soil delivered to Grafton St play area, Adlington",10/02/2021,0152744,445.00,Revenue,Mc & Ma Stewart (Haulage Ltd),16627,,
Chorley Borough Council,http://statistics.data.gov.uk/id/local-authority/30UE,Democratic Represent and  Mgnt,1007,Policy & Governance,Conservation Of Exhibits,40059,Services,5027,"Light Monitor - TR74Ui-H Data Logger +/- 2% RH, 295.00",26/02/2021,0153637,295.00,Revenue,Meaco Measurement & Control Ltd,16527,,
Chorley Borough Council,http://statistics.data.gov.uk/id/local-authority/30UE,Unapportionable Central OHeads,1009,Commercial Services,General Repairs - Reactive,20004,Repairs Maintenance & Alts,5005,Drain clearance works - blanket order,10/02/2021,0153035,280.00,Revenue,Michael Roe,78294,,
Chorley Borough Council,http://statistics.data.gov.uk/id/local-authority/30UE,Collection Fund Revenue Accoun,,Policy & Governance,Transitional Protection,02033,Precepts & Collection Fund,Precept,trans protn contrib,26/02/2021,0152710,"6,051.00",Revenue,Ministry of Housing Communities & Local Government,16280,,
Chorley Borough Council,http://statistics.data.gov.uk/id/local-authority/30UE,Collection Fund Revenue Accoun,,Policy & Governance,NNDR Central Share,02034,Precepts & Collection Fund,Precept,central share BR,26/02/2021,0152710,"1,540,965.00",Revenue,Ministry of Housing Communities & Local Government,16280,,
Chorley Borough Council,http://statistics.data.gov.uk/id/local-authority/30UE,Collection Fund Revenue Accoun,,Policy & Governance,NNDR Central Share,02034,Precepts & Collection Fund,Precept,deficit collection fund,26/02/2021,0152710,"-2,230.00",Revenue,Ministry of Housing Communities & Local Government,16280,,
Chorley Borough Council,http://statistics.data.gov.uk/id/local-authority/30UE,Collection Fund Revenue Accoun,,Policy & Governance,Transitional Protection,02033,Precepts & Collection Fund,Precept,trans ptotn contributions,26/02/2021,0152711,"6,051.00",Revenue,Ministry of Housing Communities & Local Government,16280,,
Chorley Borough Council,http://statistics.data.gov.uk/id/local-authority/30UE,Collection Fund Revenue Accoun,,Policy & Governance,NNDR Central Share,02034,Precepts & Collection Fund,Precept,central share BR,26/02/2021,0152711,"1,540,965.00",Revenue,Ministry of Housing Communities & Local Government,16280,,
Chorley Borough Council,http://statistics.data.gov.uk/id/local-authority/30UE,Collection Fund Revenue Accoun,,Policy & Governance,NNDR Central Share,02034,Precepts & Collection Fund,Precept,deficit collection fund,26/02/2021,0152711,"-2,229.00",Revenue,Ministry of Housing Communities & Local Government,16280,,
Chorley Borough Council,http://statistics.data.gov.uk/id/local-authority/30UE,Collection Fund Revenue Accoun,,Policy & Governance,Transitional Protection,02033,Precepts & Collection Fund,Precept,trans protn contributions,26/02/2021,0152712,"6,051.00",Revenue,Ministry of Housing Communities & Local Government,16280,,
Chorley Borough Council,http://statistics.data.gov.uk/id/local-authority/30UE,Collection Fund Revenue Accoun,,Policy & Governance,NNDR Central Share,02034,Precepts & Collection Fund,Precept,central share BR,26/02/2021,0152712,"1,540,964.00",Revenue,Ministry of Housing Communities & Local Government,16280,,
Chorley Borough Council,http://statistics.data.gov.uk/id/local-authority/30UE,Collection Fund Revenue Accoun,,Policy & Governance,NNDR Central Share,02034,Precepts & Collection Fund,Precept,deficit collection fund,26/02/2021,0152712,"-2,229.00",Revenue,Ministry of Housing Communities & Local Government,16280,,
Chorley Borough Council,http://statistics.data.gov.uk/id/local-authority/30UE,Collection Fund Revenue Accoun,,Policy & Governance,Transitional Protection,02033,Precepts & Collection Fund,Precept,Trans Protn Contributions,26/02/2021,0153563,"6,052.00",Revenue,Ministry of Housing Communities & Local Government,16280,,
Chorley Borough Council,http://statistics.data.gov.uk/id/local-authority/30UE,Collection Fund Revenue Accoun,,Policy & Governance,NNDR Central Share,02034,Precepts & Collection Fund,Precept,Central Share BR,26/02/2021,0153563,"1,540,965.00",Revenue,Ministry of Housing Communities & Local Government,16280,,
Chorley Borough Council,http://statistics.data.gov.uk/id/local-authority/30UE,Collection Fund Revenue Accoun,,Policy & Governance,NNDR Central Share,02034,Precepts & Collection Fund,Precept,Deficit collection fund,26/02/2021,0153563,"-2,229.00",Revenue,Ministry of Housing Communities & Local Government,16280,,
Chorley Borough Council,http://statistics.data.gov.uk/id/local-authority/30UE,Collection Fund Revenue Accoun,,Policy & Governance,Transitional Protection,02033,Precepts & Collection Fund,Precept,Transitional relief,26/02/2021,0153563,0.00,Revenue,Ministry of Housing Communities & Local Government,16280,,
Chorley Borough Council,http://statistics.data.gov.uk/id/local-authority/30UE,Capital,Capital,Early Intervention,Grants,03002,Capital Expenditure,Capital,ADDRESS REDACTED,03/02/2021,0152767,"3,308.20",Capital,Mint Northwest Ltd,65607,,
Chorley Borough Council,http://statistics.data.gov.uk/id/local-authority/30UE,Capital,Capital,Early Intervention,Grants,03002,Capital Expenditure,Capital,ADDRESS REDACTED,03/02/2021,0152786,"4,062.22",Capital,Mint Northwest Ltd,65607,,
Chorley Borough Council,http://statistics.data.gov.uk/id/local-authority/30UE,Capital,Capital,Early Intervention,Grants,03002,Capital Expenditure,Capital,ADDRESS REDACTED,03/02/2021,0152852,"4,320.63",Capital,Mint Northwest Ltd,65607,,
Chorley Borough Council,http://statistics.data.gov.uk/id/local-authority/30UE,Capital,Capital,Early Intervention,Grants,03002,Capital Expenditure,Capital,NAME REDACTED,10/02/2021,0153123,"4,742.57",Capital,Mint Northwest Ltd,65607,,
Chorley Borough Council,http://statistics.data.gov.uk/id/local-authority/30UE,Capital,Capital,Early Intervention,Grants,03002,Capital Expenditure,Capital,ADDRESS REDACTED,19/02/2021,0153322,"3,829.73",Capital,Mint Northwest Ltd,65607,,
Chorley Borough Council,http://statistics.data.gov.uk/id/local-authority/30UE,Planning Policy,1092,Commercial Services,Legal Fees,40171,Miscellaneous Expenses,5034,Counsel`s Advice in the matter of Land at Wigan Lane Chorley,17/02/2021,0153246,"1,500.00",Revenue,Miss Rebecca Cattermole,78532,,
Chorley Borough Council,http://statistics.data.gov.uk/id/local-authority/30UE,Private Sector HSG Renewal,1073,Early Intervention,External Contractor,40198,Miscellaneous Expenses,5034,Ref 4115,10/02/2021,0153188,186.00,Revenue,Mobility Care Services,70841,,
Chorley Borough Council,http://statistics.data.gov.uk/id/local-authority/30UE,Private Sector HSG Renewal,1073,Early Intervention,External Contractor,40198,Miscellaneous Expenses,5034,Ref 4117,10/02/2021,0153188,49.50,Revenue,Mobility Care Services,70841,,
Chorley Borough Council,http://statistics.data.gov.uk/id/local-authority/30UE,Private Sector HSG Renewal,1073,Early Intervention,External Contractor,40198,Miscellaneous Expenses,5034,Ref 4118,10/02/2021,0153188,66.00,Revenue,Mobility Care Services,70841,,
Chorley Borough Council,http://statistics.data.gov.uk/id/local-authority/30UE,Private Sector HSG Renewal,1073,Early Intervention,External Contractor,40198,Miscellaneous Expenses,5034,Ref 4126,10/02/2021,0153188,256.00,Revenue,Mobility Care Services,70841,,
Chorley Borough Council,http://statistics.data.gov.uk/id/local-authority/30UE,Private Sector HSG Renewal,1073,Early Intervention,External Contractor,40198,Miscellaneous Expenses,5034,Ref 4127,10/02/2021,0153188,256.00,Revenue,Mobility Care Services,70841,,
Chorley Borough Council,http://statistics.data.gov.uk/id/local-authority/30UE,Private Sector HSG Renewal,1073,Early Intervention,External Contractor,40198,Miscellaneous Expenses,5034,Ref 4128,10/02/2021,0153188,720.00,Revenue,Mobility Care Services,70841,,
Chorley Borough Council,http://statistics.data.gov.uk/id/local-authority/30UE,Private Sector HSG Renewal,1073,Early Intervention,External Contractor,40198,Miscellaneous Expenses,5034,Ref 4129,10/02/2021,0153188,128.00,Revenue,Mobility Care Services,70841,,
Chorley Borough Council,http://statistics.data.gov.uk/id/local-authority/30UE,Private Sector HSG Renewal,1073,Early Intervention,External Contractor,40198,Miscellaneous Expenses,5034,Ref 4140,10/02/2021,0153188,66.00,Revenue,Mobility Care Services,70841,,
Chorley Borough Council,http://statistics.data.gov.uk/id/local-authority/30UE,Private Sector HSG Renewal,1073,Early Intervention,External Contractor,40198,Miscellaneous Expenses,5034,Ref 4141,10/02/2021,0153188,82.50,Revenue,Mobility Care Services,70841,,
Chorley Borough Council,http://statistics.data.gov.uk/id/local-authority/30UE,Private Sector HSG Renewal,1073,Early Intervention,External Contractor,40198,Miscellaneous Expenses,5034,Ref 4143,10/02/2021,0153188,128.00,Revenue,Mobility Care Services,70841,,
Chorley Borough Council,http://statistics.data.gov.uk/id/local-authority/30UE,Private Sector HSG Renewal,1073,Early Intervention,External Contractor,40198,Miscellaneous Expenses,5034,Ref 4144,10/02/2021,0153188,340.00,Revenue,Mobility Care Services,70841,,
Chorley Borough Council,http://statistics.data.gov.uk/id/local-authority/30UE,Private Sector HSG Renewal,1073,Early Intervention,External Contractor,40198,Miscellaneous Expenses,5034,Ref 4155,10/02/2021,0153188,980.00,Revenue,Mobility Care Services,70841,,
Chorley Borough Council,http://statistics.data.gov.uk/id/local-authority/30UE,Private Sector HSG Renewal,1073,Early Intervention,External Contractor,40198,Miscellaneous Expenses,5034,Ref 4167,10/02/2021,0153188,82.50,Revenue,Mobility Care Services,70841,,
Chorley Borough Council,http://statistics.data.gov.uk/id/local-authority/30UE,Private Sector HSG Renewal,1073,Early Intervention,External Contractor,40198,Miscellaneous Expenses,5034,Ref 4160,10/02/2021,0153188,82.50,Revenue,Mobility Care Services,70841,,
Chorley Borough Council,http://statistics.data.gov.uk/id/local-authority/30UE,Private Sector HSG Renewal,1073,Early Intervention,External Contractor,40198,Miscellaneous Expenses,5034,Ref 4168,10/02/2021,0153188,66.00,Revenue,Mobility Care Services,70841,,
Chorley Borough Council,http://statistics.data.gov.uk/id/local-authority/30UE,Private Sector HSG Renewal,1073,Early Intervention,External Contractor,40198,Miscellaneous Expenses,5034,Ref 4191,10/02/2021,0153188,115.00,Revenue,Mobility Care Services,70841,,
Chorley Borough Council,http://statistics.data.gov.uk/id/local-authority/30UE,Private Sector HSG Renewal,1073,Early Intervention,External Contractor,40198,Miscellaneous Expenses,5034,Ref 4197,10/02/2021,0153188,33.00,Revenue,Mobility Care Services,70841,,
Chorley Borough Council,http://statistics.data.gov.uk/id/local-authority/30UE,Private Sector HSG Renewal,1073,Early Intervention,External Contractor,40198,Miscellaneous Expenses,5034,Ref 4209,10/02/2021,0153188,82.50,Revenue,Mobility Care Services,70841,,
Chorley Borough Council,http://statistics.data.gov.uk/id/local-authority/30UE,Private Sector HSG Renewal,1073,Early Intervention,External Contractor,40198,Miscellaneous Expenses,5034,Ref 4206,10/02/2021,0153188,66.00,Revenue,Mobility Care Services,70841,,
Chorley Borough Council,http://statistics.data.gov.uk/id/local-authority/30UE,Private Sector HSG Renewal,1073,Early Intervention,External Contractor,40198,Miscellaneous Expenses,5034,Ref 4207,10/02/2021,0153188,33.00,Revenue,Mobility Care Services,70841,,
Chorley Borough Council,http://statistics.data.gov.uk/id/local-authority/30UE,Private Sector HSG Renewal,1073,Early Intervention,External Contractor,40198,Miscellaneous Expenses,5034,Ref 4206,10/02/2021,0153188,65.00,Revenue,Mobility Care Services,70841,,
Chorley Borough Council,http://statistics.data.gov.uk/id/local-authority/30UE,Private Sector HSG Renewal,1073,Early Intervention,External Contractor,40198,Miscellaneous Expenses,5034,Ref 4218,10/02/2021,0153188,280.00,Revenue,Mobility Care Services,70841,,
Chorley Borough Council,http://statistics.data.gov.uk/id/local-authority/30UE,Private Sector HSG Renewal,1073,Early Intervention,External Contractor,40198,Miscellaneous Expenses,5034,Ref 4221,10/02/2021,0153188,780.00,Revenue,Mobility Care Services,70841,,
Chorley Borough Council,http://statistics.data.gov.uk/id/local-authority/30UE,Private Sector HSG Renewal,1073,Early Intervention,External Contractor,40198,Miscellaneous Expenses,5034,Ref 4230,10/02/2021,0153188,128.00,Revenue,Mobility Care Services,70841,,
Chorley Borough Council,http://statistics.data.gov.uk/id/local-authority/30UE,Private Sector HSG Renewal,1073,Early Intervention,External Contractor,40198,Miscellaneous Expenses,5034,Ref 4229,10/02/2021,0153188,128.00,Revenue,Mobility Care Services,70841,,
Chorley Borough Council,http://statistics.data.gov.uk/id/local-authority/30UE,Private Sector HSG Renewal,1073,Early Intervention,External Contractor,40198,Miscellaneous Expenses,5034,Ref 4228,10/02/2021,0153188,128.00,Revenue,Mobility Care Services,70841,,
Chorley Borough Council,http://statistics.data.gov.uk/id/local-authority/30UE,Private Sector HSG Renewal,1073,Early Intervention,External Contractor,40198,Miscellaneous Expenses,5034,Ref 4227,10/02/2021,0153188,180.00,Revenue,Mobility Care Services,70841,,
Chorley Borough Council,http://statistics.data.gov.uk/id/local-authority/30UE,Private Sector HSG Renewal,1073,Early Intervention,External Contractor,40198,Miscellaneous Expenses,5034,Ref 4226,10/02/2021,0153188,512.00,Revenue,Mobility Care Services,70841,,
Chorley Borough Council,http://statistics.data.gov.uk/id/local-authority/30UE,Culture & Heritage,1036,Policy & Governance,Conservation Of Exhibits,40059,Services,5027,Astley Hall Museum and Art Gallery - second user license for Modes Complete - 650.00,12/02/2021,0153244,650.00,Revenue,MODES Users Association,18818,,
Chorley Borough Council,http://statistics.data.gov.uk/id/local-authority/30UE,Business Support,1095,Commercial Services,Security Service,40062,Services,5027,To provide evening Site Security Services at Market Walk Shopping Centre from 5pm until midnight 7 days a week,10/02/2021,0152498,526.75,Revenue,New Concept Security NW Ltd T/A New Concept Goup,80488,,
Chorley Borough Council,http://statistics.data.gov.uk/id/local-authority/30UE,Business Support,1095,Commercial Services,Security Service,40062,Services,5027,To provide evening Site Security Services at Market Walk Shopping Centre from 5pm until midnight 7 days a week,10/02/2021,0152915,516.00,Revenue,New Concept Security NW Ltd T/A New Concept Goup,80488,,
Chorley Borough Council,http://statistics.data.gov.uk/id/local-authority/30UE,Business Support,1095,Commercial Services,Security Service,40062,Services,5027,To provide evening Site Security Services at Market Walk Shopping Centre from 5pm until midnight 7 days a week,12/02/2021,0153186,451.50,Revenue,New Concept Security NW Ltd T/A New Concept Goup,80488,,
Chorley Borough Council,http://statistics.data.gov.uk/id/local-authority/30UE,Business Support,1095,Commercial Services,Security Service,40062,Services,5027,To provide evening Site Security Services at Market Walk Shopping Centre from 5pm until midnight 7 days a week,17/02/2021,0153335,526.75,Revenue,New Concept Security NW Ltd T/A New Concept Goup,80488,,
Chorley Borough Council,http://statistics.data.gov.uk/id/local-authority/30UE,Business Support,1095,Commercial Services,Security Service,40062,Services,5027,To provide evening Site Security Services at Market Walk Shopping Centre from 5pm until midnight 7 days a week,24/02/2021,0153392,526.75,Revenue,New Concept Security NW Ltd T/A New Concept Goup,80488,,
Chorley Borough Council,http://statistics.data.gov.uk/id/local-authority/30UE,Business Support,1095,Commercial Services,Security Service,40062,Services,5027,To provide evening Site Security Services at Market Walk Shopping Centre from 5pm until midnight 7 days a week,24/02/2021,0153395,526.75,Revenue,New Concept Security NW Ltd T/A New Concept Goup,80488,,
Chorley Borough Council,http://statistics.data.gov.uk/id/local-authority/30UE,Unapportionable Central OHeads,1009,Policy & Governance,Laundry,40042,"Clothing, Uniforms and Laundry",5025,Tablecloths laundered and delivered to the Town Hall prior to government lockdown.,17/02/2021,0153391,329.00,Revenue,North West Ironing & Laundry Centre,20450,,
Chorley Borough Council,http://statistics.data.gov.uk/id/local-authority/30UE,Democratic Represent and  Mgnt,1007,Commercial Services,Electricity,20013,Energy Costs,5006,CLAYTON BROOK VILLAGE HALL,17/02/2021,0152890,426.19,Revenue,Npower Commercial Gas,16814,,
Chorley Borough Council,http://statistics.data.gov.uk/id/local-authority/30UE,Open Spaces,1038,Commercial Services,Electricity,20013,Energy Costs,5006,HARPERS LANE RECREAT,17/02/2021,0153382,21.07,Revenue,Npower Commercial Gas,16814,,
Chorley Borough Council,http://statistics.data.gov.uk/id/local-authority/30UE,Open Spaces,1038,Commercial Services,Electricity,20013,Energy Costs,5006,TATTON RECREATION GR,17/02/2021,0153382,9.79,Revenue,Npower Commercial Gas,16814,,
Chorley Borough Council,http://statistics.data.gov.uk/id/local-authority/30UE,Service Management & Support,1009,Commercial Services,Electricity,20013,Energy Costs,5006,GILLETT PLAYING FIEL,17/02/2021,0153382,7.33,Revenue,Npower Commercial Gas,16814,,
Chorley Borough Council,http://statistics.data.gov.uk/id/local-authority/30UE,Democratic Represent and  Mgnt,1007,Commercial Services,Electricity,20013,Energy Costs,5006,KING GEORGE V PLAYING FIELDS,17/02/2021,0153382,7.62,Revenue,Npower Commercial Gas,16814,,
Chorley Borough Council,http://statistics.data.gov.uk/id/local-authority/30UE,Democratic Represent and  Mgnt,1007,Commercial Services,Electricity,20013,Energy Costs,5006,ASTLEY HALL FARM HOU,17/02/2021,0153382,139.20,Revenue,Npower Commercial Gas,16814,,
Chorley Borough Council,http://statistics.data.gov.uk/id/local-authority/30UE,Democratic Represent and  Mgnt,1007,Commercial Services,Electricity,20013,Energy Costs,5006,ASTLEY HALL,17/02/2021,0153382,64.30,Revenue,Npower Commercial Gas,16814,,
Chorley Borough Council,http://statistics.data.gov.uk/id/local-authority/30UE,Recreation & Sport,1037,Commercial Services,Electricity,20013,Energy Costs,5006,EAVES GREEN COMMUNIT,17/02/2021,0153382,130.95,Revenue,Npower Commercial Gas,16814,,
Chorley Borough Council,http://statistics.data.gov.uk/id/local-authority/30UE,Community Development,1097,Commercial Services,Electricity,20013,Energy Costs,5006,TOP FLOOR INFORMATIO,17/02/2021,0153382,36.25,Revenue,Npower Commercial Gas,16814,,
Chorley Borough Council,http://statistics.data.gov.uk/id/local-authority/30UE,Community Development,1097,Commercial Services,Electricity,20013,Energy Costs,5006,GROUND FLOOR INFORMA,17/02/2021,0153382,18.17,Revenue,Npower Commercial Gas,16814,,
Chorley Borough Council,http://statistics.data.gov.uk/id/local-authority/30UE,Democratic Represent and  Mgnt,1007,Commercial Services,Electricity,20013,Energy Costs,5006,CORONATION RECREATIO,17/02/2021,0153382,26.42,Revenue,Npower Commercial Gas,16814,,
Chorley Borough Council,http://statistics.data.gov.uk/id/local-authority/30UE,Democratic Represent and  Mgnt,1007,Commercial Services,Electricity,20013,Energy Costs,5006,ASTLEY VILLAGE COMMU,17/02/2021,0153382,102.61,Revenue,Npower Commercial Gas,16814,,
Chorley Borough Council,http://statistics.data.gov.uk/id/local-authority/30UE,Open Spaces,1038,Commercial Services,Electricity,20013,Energy Costs,5006,ASTLEY HALL COACH HO,17/02/2021,0153382,"1,079.74",Revenue,Npower Commercial Gas,16814,,
Chorley Borough Council,http://statistics.data.gov.uk/id/local-authority/30UE,Culture & Heritage,1036,Commercial Services,Electricity,20013,Energy Costs,5006,ASTLEY HALL COTTAGE,17/02/2021,0153382,69.65,Revenue,Npower Commercial Gas,16814,,
Chorley Borough Council,http://statistics.data.gov.uk/id/local-authority/30UE,Corporate Management,1008,Commercial Services,Electricity,20013,Energy Costs,5006,CEMETERIES OFFICE,17/02/2021,0153382,141.08,Revenue,Npower Commercial Gas,16814,,
Chorley Borough Council,http://statistics.data.gov.uk/id/local-authority/30UE,Open Spaces,1038,Commercial Services,Electricity,20013,Energy Costs,5006,ASTLEY PARK PAVILION/CHANGING,17/02/2021,0153382,273.03,Revenue,Npower Commercial Gas,16814,,
Chorley Borough Council,http://statistics.data.gov.uk/id/local-authority/30UE,Economic Development,1096,Commercial Services,Electricity,20013,Energy Costs,5006,"MARKET COMPACTOR, RE",17/02/2021,0153382,12.97,Revenue,Npower Commercial Gas,16814,,
Chorley Borough Council,http://statistics.data.gov.uk/id/local-authority/30UE,Democratic Represent and  Mgnt,1007,Commercial Services,Electricity,20013,Energy Costs,5006,KING GEORGE V CHANGING ROOMS,17/02/2021,0153382,7.33,Revenue,Npower Commercial Gas,16814,,
Chorley Borough Council,http://statistics.data.gov.uk/id/local-authority/30UE,Homelessness,1075,Commercial Services,Electricity,20013,Energy Costs,5006,COTSWOLD HOUSE COMMUNAL ROOMS,17/02/2021,0153382,582.24,Revenue,Npower Commercial Gas,16814,,
Chorley Borough Council,http://statistics.data.gov.uk/id/local-authority/30UE,Homelessness,1075,Commercial Services,Electricity,20013,Energy Costs,5006,COTSWOLD HOUSE TWO STORY WING,17/02/2021,0153382,261.57,Revenue,Npower Commercial Gas,16814,,
Chorley Borough Council,http://statistics.data.gov.uk/id/local-authority/30UE,Homelessness,1075,Commercial Services,Electricity,20013,Energy Costs,5006,COTSWOLD HOUSE SINGL,17/02/2021,0153382,100.16,Revenue,Npower Commercial Gas,16814,,
Chorley Borough Council,http://statistics.data.gov.uk/id/local-authority/30UE,Business Support,1095,Commercial Services,Electricity,20013,Energy Costs,5006,LANDLORDS COMMUNAL AREA,17/02/2021,0153382,"1,920.81",Revenue,Npower Commercial Gas,16814,,
Chorley Borough Council,http://statistics.data.gov.uk/id/local-authority/30UE,Recreation & Sport,1037,Commercial Services,Electricity,20013,Energy Costs,5006,BUTTERMERE COMMUNITY,17/02/2021,0153382,114.18,Revenue,Npower Commercial Gas,16814,,
Chorley Borough Council,http://statistics.data.gov.uk/id/local-authority/30UE,Recreation & Sport,1037,Commercial Services,Electricity,20013,Energy Costs,5006,LANCASTER WAY COMMUN,17/02/2021,0153382,96.54,Revenue,Npower Commercial Gas,16814,,
Chorley Borough Council,http://statistics.data.gov.uk/id/local-authority/30UE,Parking Services,1066,Commercial Services,Electricity,20013,Energy Costs,5006,CAR PARK UNION ST,17/02/2021,0153382,567.13,Revenue,Npower Commercial Gas,16814,,
Chorley Borough Council,http://statistics.data.gov.uk/id/local-authority/30UE,Parking Services,1066,Commercial Services,Electricity,20013,Energy Costs,5006,ARLEY STREET CAR PAR,17/02/2021,0153382,11.68,Revenue,Npower Commercial Gas,16814,,
Chorley Borough Council,http://statistics.data.gov.uk/id/local-authority/30UE,Parking Services,1066,Commercial Services,Electricity,20013,Energy Costs,5006,OAK HOUSE CAR PARK,17/02/2021,0153382,268.03,Revenue,Npower Commercial Gas,16814,,
Chorley Borough Council,http://statistics.data.gov.uk/id/local-authority/30UE,Parking Services,1066,Commercial Services,Electricity,20013,Energy Costs,5006,FRIDAY STREET,17/02/2021,0153382,378.77,Revenue,Npower Commercial Gas,16814,,
Chorley Borough Council,http://statistics.data.gov.uk/id/local-authority/30UE,Central Support Services,1009,Commercial Services,Electricity,20013,Energy Costs,5006,CCTV FEEDER PILLAR STEELEY LANE,17/02/2021,0153382,12.09,Revenue,Npower Commercial Gas,16814,,
Chorley Borough Council,http://statistics.data.gov.uk/id/local-authority/30UE,Democratic Represent and  Mgnt,1007,Commercial Services,Electricity,20013,Energy Costs,5006,RANGLETTS RECREATION,17/02/2021,0153382,30.46,Revenue,Npower Commercial Gas,16814,,
Chorley Borough Council,http://statistics.data.gov.uk/id/local-authority/30UE,Unapportionable Central OHeads,1009,Commercial Services,Electricity,20013,Energy Costs,5006,"CIVIC OFFICES, UNION STREET",17/02/2021,0153383,"3,386.96",Revenue,Npower Commercial Gas,16814,,
Chorley Borough Council,http://statistics.data.gov.uk/id/local-authority/30UE,Central Support Services,1009,Commercial Services,Electricity,20013,Energy Costs,5006,BENGAL STREET DEPOT,17/02/2021,0153383,"1,822.08",Revenue,Npower Commercial Gas,16814,,
Chorley Borough Council,http://statistics.data.gov.uk/id/local-authority/30UE,Central Support Services,1009,Commercial Services,Electricity,20013,Energy Costs,5006,TOWN HALL,17/02/2021,0153383,"2,225.97",Revenue,Npower Commercial Gas,16814,,
Chorley Borough Council,http://statistics.data.gov.uk/id/local-authority/30UE,Recreation & Sport,1037,Commercial Services,Electricity,20013,Energy Costs,5006,CLAYTON BROOK VILLAGE HALL,17/02/2021,0153383,134.20,Revenue,Npower Commercial Gas,16814,,
Chorley Borough Council,http://statistics.data.gov.uk/id/local-authority/30UE,Business Support,1095,Commercial Services,Electricity,20013,Energy Costs,5006,"LANDLORD, PRIMROSE GARDENS",17/02/2021,0153383,"1,419.49",Revenue,Npower Commercial Gas,16814,,
Chorley Borough Council,http://statistics.data.gov.uk/id/local-authority/30UE,Business Support,1095,Commercial Services,Electricity,20013,Energy Costs,5006,"STRAWBERRY FIELDS, DIGITAL HUB",17/02/2021,0153383,"5,019.72",Revenue,Npower Commercial Gas,16814,,
Chorley Borough Council,http://statistics.data.gov.uk/id/local-authority/30UE,Business Support,1095,Commercial Services,Electricity,20013,Energy Costs,5006,MARKET WALK EXTENSION,17/02/2021,0153383,539.15,Revenue,Npower Commercial Gas,16814,,
Chorley Borough Council,http://statistics.data.gov.uk/id/local-authority/30UE,Parking Services,1066,Commercial Services,External Contractors,50008,Private Contractors,5042,"Provision of off street car park enforcement, cash collection, cash counting facilities and third party bulk cash collections",10/02/2021,0152990,"4,739.69",Revenue,NSL Limited,67253,,
Chorley Borough Council,http://statistics.data.gov.uk/id/local-authority/30UE,Economic Development,1096,Commercial Services,Professional Fees,40063,Services,5027,To carry out Fire Inspection / assessment visit to chorley covered market as part of the improvement plans,05/02/2021,0152931,"2,800.00",Revenue,Omega Fire Engineering Limited TA BB7,80972,,
Chorley Borough Council,http://statistics.data.gov.uk/id/local-authority/30UE,Parking Services,1066,Commercial Services,Printing,40043,"Printing, Stationery & General",5026,Please supply 200k ~Stelio Adhesive Check out Chorley tickets are 6.73 Please deliver FAO: NAME REDACTED,03/02/2021,0152948,"1,352.73",Revenue,Paperwork (UK) Limited,18296,,
Chorley Borough Council,http://statistics.data.gov.uk/id/local-authority/30UE,Corporate Management,1008,Policy & Governance,Exhibitions & Special Events,40158,Miscellaneous Expenses,5034,To light the cenotaph in Astley Park to commemorate Holocaust Memorial Day,03/02/2021,0152875,500.00,Revenue,Paul K Sound & Vision,16607,,
Chorley Borough Council,http://statistics.data.gov.uk/id/local-authority/30UE,Unapportionable Central OHeads,1009,Policy & Governance,HR Recruitment - Advertising,15300,Indirect Employee Expenses,5002,Advertising for Director of Finance recruitment,10/02/2021,0152969,"4,372.00",Revenue,Penna Plc,77833,,
Chorley Borough Council,http://statistics.data.gov.uk/id/local-authority/30UE,Unapportionable Central OHeads,1009,Commercial Services,Planned Maintenance,20006,Repairs Maintenance & Alts,5005,Blanket ppm,10/02/2021,0153031,"1,548.85",Revenue,Pennine Fire & Safety Limited,69643,,
Chorley Borough Council,http://statistics.data.gov.uk/id/local-authority/30UE,Unapportionable Central OHeads,1009,Policy & Governance,HR Approved Occ Health Fees,15201,Indirect Employee Expenses,5002,Occupational Health Charges for January 2021,10/02/2021,0153160,611.75,Revenue,People Asset Management Limited,76487,,
Chorley Borough Council,http://statistics.data.gov.uk/id/local-authority/30UE,Central Support Services,1009,Commercial Services,Professional Fees,40063,Services,5027,Extension to professional services,10/02/2021,0153070,"5,200.00",Revenue,Perfect Circle JV Ltd,76438,,
Chorley Borough Council,http://statistics.data.gov.uk/id/local-authority/30UE,Central Support Services,1009,Policy & Governance,HR Recruitment Expenses,15200,Indirect Employee Expenses,5002,Provision of DBS Checks for staff,10/02/2021,0152978,847.55,Revenue,Personnel Checks Ltd,81534,,
Chorley Borough Council,http://statistics.data.gov.uk/id/local-authority/30UE,Unapportionable Central OHeads,1009,Policy & Governance,HR Recruitment Expenses,15200,Indirect Employee Expenses,5002,gov fee,10/02/2021,0152978,"2,200.00",Revenue,Personnel Checks Ltd,81534,,
Chorley Borough Council,http://statistics.data.gov.uk/id/local-authority/30UE,Service Management & Support,1009,Customer & Digital,Diesel/Derv,30007,Direct Transport Costs,5016,"as per your quotation on The Chest for 8,000 Litres DERV @ 0.95 p/l",03/02/2021,0152713,"7,600.00",Revenue,Pilkington Oils,18075,,
Chorley Borough Council,http://statistics.data.gov.uk/id/local-authority/30UE,Service Management & Support,1009,Customer & Digital,Diesel/Derv,30007,Direct Transport Costs,5016,"as per your quotation on The Chest for 1,000 Litres Gas Oil @ 0.50 p/l",10/02/2021,0152858,500.00,Revenue,Pilkington Oils,18075,,
Chorley Borough Council,http://statistics.data.gov.uk/id/local-authority/30UE,Democratic Represent and  Mgnt,1007,Early Intervention,Supplies-Grounds Maintenance,40025,"Equipment, Furniture & Materia",5023,"supply only of Rotabounce. Delivery to be co-ordinated straight to site or to contractors yard, address which is to be confirmed.",03/02/2021,0152539,"3,249.10",Revenue,Playdale Playgrounds Limited,18672,,
Chorley Borough Council,http://statistics.data.gov.uk/id/local-authority/30UE,Precepts and Collection Fund,Precepts,Policy & Governance,LPA Precept,02010,Precepts & Collection Fund,Precept,PCC council tax precept,26/02/2021,0152885,"800,695.00",Revenue,Police & Crime Commissioner,17438,,
Chorley Borough Council,http://statistics.data.gov.uk/id/local-authority/30UE,Precepts and Collection Fund,Precepts,Policy & Governance,LPA Precept,02010,Precepts & Collection Fund,Precept,PCC council tax precept,26/02/2021,0152922,"800,695.00",Revenue,Police & Crime Commissioner,17438,,
Chorley Borough Council,http://statistics.data.gov.uk/id/local-authority/30UE,Precepts and Collection Fund,Precepts,Policy & Governance,LPA Precept,02010,Precepts & Collection Fund,Precept,PCC Council tax precept,26/02/2021,0153490,"800,695.00",Revenue,Police & Crime Commissioner,17438,,
Chorley Borough Council,http://statistics.data.gov.uk/id/local-authority/30UE,Precepts and Collection Fund,Precepts,Policy & Governance,LPA Precept,02010,Precepts & Collection Fund,Precept,PCC Council tax precept,26/02/2021,0153510,"800,695.00",Revenue,Police & Crime Commissioner,17438,,
Chorley Borough Council,http://statistics.data.gov.uk/id/local-authority/30UE,Recreation & Sport,1037,Commercial Services,General Repairs - Reactive,20004,Repairs Maintenance & Alts,5005,"Brinscall Baths, Callout to CO2 controller which was noisy",17/02/2021,0152982,371.09,Revenue,Pool Technical Services Ltd,81000,,
Chorley Borough Council,http://statistics.data.gov.uk/id/local-authority/30UE,Capital,Capital,Commercial Services,Main Contractor,03007,Capital Expenditure,Capital,"All Seasons, Flow meter works, Supply of works to: Strip down flow meters, Strip down orifice plates, Service with spares",24/02/2021,0153497,"1,360.00",Capital,Pool Technical Services Ltd,81000,,
Chorley Borough Council,http://statistics.data.gov.uk/id/local-authority/30UE,Corporate Management,1008,Policy & Governance,Miscellaneous Expenses,40200,Miscellaneous Expenses,5034,100 x Correx Hands-Face-Space COVID safety signs for across the borough - additional order,03/02/2021,0152581,994.73,Revenue,Poppy Signs Ltd,21898,,
Chorley Borough Council,http://statistics.data.gov.uk/id/local-authority/30UE,Unapportionable Central OHeads,1009,Policy & Governance,Printing,40043,"Printing, Stationery & General",5026,4 x Outdoor interpretation panels about the Astley renovation work - A0 composite on a frame to be fixed to fence etc.,03/02/2021,0152762,556.59,Revenue,Poppy Signs Ltd,21898,,
Chorley Borough Council,http://statistics.data.gov.uk/id/local-authority/30UE,Business Support,1095,Commercial Services,Signs:Provision & Maintenance,20065,Grounds Maintenance Costs,5013,"Stickers, wall signs and post mounted signs, Aluminium composite boards. Including design, manufacture & installation",24/02/2021,0153389,"1,477.64",Revenue,Poppy Signs Ltd,21898,,
Chorley Borough Council,http://statistics.data.gov.uk/id/local-authority/30UE,Elections,1012,Policy & Governance,Postages,40082,Communication and Computing,5028,PI Refresh first reminders mailing,19/02/2021,0153380,309.91,Revenue,Print Image Facilities LLP,57870,,
Chorley Borough Council,http://statistics.data.gov.uk/id/local-authority/30UE,Interest Payable on Debt,1020,Policy & Governance,Interest Payable,09009,Interest Payments,5067,int ln-502694-502699,26/02/2021,0152791,"156,030.41",Revenue,Public Works Loans Board,21480,,
Chorley Borough Council,http://statistics.data.gov.uk/id/local-authority/30UE,Interest Payable on Debt,1020,Policy & Governance,Interest Payable,09009,Interest Payments,5067,interest LN509178,26/02/2021,0152879,"26,760.00",Revenue,Public Works Loans Board,21480,,
Chorley Borough Council,http://statistics.data.gov.uk/id/local-authority/30UE,Interest Payable on Debt,1020,Policy & Governance,Interest Payable,09009,Interest Payments,5067,interest Ln508381,26/02/2021,0152880,"36,036.43",Revenue,Public Works Loans Board,21480,,
Chorley Borough Council,http://statistics.data.gov.uk/id/local-authority/30UE,Interest Payable on Debt,1020,Policy & Governance,Interest Payable,09009,Interest Payments,5067,interest LN508382,26/02/2021,0152880,"37,248.75",Revenue,Public Works Loans Board,21480,,
Chorley Borough Council,http://statistics.data.gov.uk/id/local-authority/30UE,Interest Payable on Debt,1020,Policy & Governance,Interest Payable,09009,Interest Payments,5067,interest LN506766,26/02/2021,0152882,"18,071.43",Revenue,Public Works Loans Board,21480,,
Chorley Borough Council,http://statistics.data.gov.uk/id/local-authority/30UE,Interest Payable on Debt,1020,Policy & Governance,Interest Payable,09009,Interest Payments,5067,interest LN506764,26/02/2021,0152882,"28,875.00",Revenue,Public Works Loans Board,21480,,
Chorley Borough Council,http://statistics.data.gov.uk/id/local-authority/30UE,Interest Payable on Debt,1020,Policy & Governance,Interest Payable,09009,Interest Payments,5067,Interest,26/02/2021,0153491,"294,114.97",Revenue,Public Works Loans Board,21480,,
Chorley Borough Council,http://statistics.data.gov.uk/id/local-authority/30UE,Interest Payable on Debt,1020,Policy & Governance,Interest Payable,09009,Interest Payments,5067,Interest | LN509689,26/02/2021,0153492,"18,283.20",Revenue,Public Works Loans Board,21480,,
Chorley Borough Council,http://statistics.data.gov.uk/id/local-authority/30UE,Interest Payable on Debt,1020,Policy & Governance,Interest Payable,09009,Interest Payments,5067,Interest | LN509691,26/02/2021,0153492,"18,810.00",Revenue,Public Works Loans Board,21480,,
Chorley Borough Council,http://statistics.data.gov.uk/id/local-authority/30UE,Corporate Management,1008,Policy & Governance,Miscellaneous Expenses,40200,Miscellaneous Expenses,5034,Recite to provide web accessibility tools for a period of one year on the URLs listed below. https://main.chorley.gov.uk,17/02/2021,0140647,"2,495.00",Revenue,Recite Me Limited,78239,,
Chorley Borough Council,http://statistics.data.gov.uk/id/local-authority/30UE,Control Accounts,Control,Policy & Governance,General Balances,00100,Balance Sheet,Balance,3rd DEC 2020,26/02/2021,0151076,937.00,Revenue,Reward Gateway (UK) Ltd,66814,,
Chorley Borough Council,http://statistics.data.gov.uk/id/local-authority/30UE,Control Accounts,Control,Policy & Governance,General Balances,00100,Balance Sheet,Balance,Childcare Vouchers,26/02/2021,0152242,937.00,Revenue,Reward Gateway (UK) Ltd,66814,,
Chorley Borough Council,http://statistics.data.gov.uk/id/local-authority/30UE,Control Accounts,Control,Policy & Governance,General Balances,00100,Balance Sheet,Balance,ccv vouchers,26/02/2021,0152992,"1,060.00",Revenue,Reward Gateway (UK) Ltd,66814,,
Chorley Borough Council,http://statistics.data.gov.uk/id/local-authority/30UE,Unapportionable Central OHeads,1009,Policy & Governance,IT Software - Annual Licences,40101,Communication and Computing,5028,Subscription fee on Invoice UK01787351 from November 2020 to November 2021,10/02/2021,0153165,"12,500.00",Revenue,Reward Gateway (UK) Ltd,77948,,
Chorley Borough Council,http://statistics.data.gov.uk/id/local-authority/30UE,Unapportionable Central OHeads,1009,Policy & Governance,IT Software - Annual Licences,40101,Communication and Computing,5028,Reward Gateway Subscription fee,10/02/2021,0153200,"7,278.00",Revenue,Reward Gateway (UK) Ltd,77948,,
Chorley Borough Council,http://statistics.data.gov.uk/id/local-authority/30UE,Non Domestic Rates Redistribut,,Policy & Governance,Tariff to Business Rates Pool,49002,Expenditure not in NCOS,,Lancashire Business Rate Pool 2020/21,26/02/2021,0152606,"520,258.00",Revenue,Ribble Valley Borough Council DIRECT DEBIT ONLY,21100,,
Chorley Borough Council,http://statistics.data.gov.uk/id/local-authority/30UE,Non Domestic Rates Redistribut,,Policy & Governance,Tariff to Business Rates Pool,49002,Expenditure not in NCOS,,Lancashire Business Rates Pool 2020/21,26/02/2021,0152607,"520,258.00",Revenue,Ribble Valley Borough Council DIRECT DEBIT ONLY,21100,,
Chorley Borough Council,http://statistics.data.gov.uk/id/local-authority/30UE,Non Domestic Rates Redistribut,,Policy & Governance,Tariff to Business Rates Pool,49002,Expenditure not in NCOS,,Lancashire Business Rates Pool 2020/21,26/02/2021,0152608,"520,258.00",Revenue,Ribble Valley Borough Council DIRECT DEBIT ONLY,21100,,
Chorley Borough Council,http://statistics.data.gov.uk/id/local-authority/30UE,Non Domestic Rates Redistribut,,Policy & Governance,Tariff to Business Rates Pool,49002,Expenditure not in NCOS,,Lancs Business Rates Pool,26/02/2021,0153555,"520,258.00",Revenue,Ribble Valley Borough Council DIRECT DEBIT ONLY,21100,,
Chorley Borough Council,http://statistics.data.gov.uk/id/local-authority/30UE,Central Support Services,1009,Commercial Services,Consultants` Fees,40077,Services,5027,Provision of Project Management & Quantity Surveying Services on the Tatton Regeneration scheme from Contractor appointment,03/02/2021,0152778,"10,710.00",Revenue,Rider Levett Bucknall,67527,,
Chorley Borough Council,http://statistics.data.gov.uk/id/local-authority/30UE,Central Support Services,1009,Commercial Services,Professional Fees,40063,Services,5027,"Rightmove advertising for 12 months - 7-18 properties band, 6 months at 235pm, 6 months at 570pm",24/02/2021,0153524,285.00,Revenue,Rightmove Group Ltd,77717,,
Chorley Borough Council,http://statistics.data.gov.uk/id/local-authority/30UE,Business Support,1095,Commercial Services,Postages,40082,Communication and Computing,5028,Weekly collections,19/02/2021,0153269,787.00,Revenue,Royal Mail Group Ltd,21229,,
Chorley Borough Council,http://statistics.data.gov.uk/id/local-authority/30UE,Elections,1012,Policy & Governance,Postages,40082,Communication and Computing,5028,business reply from 1 April 2020  - RRHA-KZGB-CAXA,10/02/2021,0153189,548.17,Revenue,Royal Mail Group Plc,17522,,
Chorley Borough Council,http://statistics.data.gov.uk/id/local-authority/30UE,Development Control,1091,Customer & Digital,Consultants` Fees,40077,Services,5027,CANCELLED BY CREDIT CN6901142,19/02/2021,0153225,"1,620.00",Revenue,RSK ADAS Ltd (GBP),78447,,
Chorley Borough Council,http://statistics.data.gov.uk/id/local-authority/30UE,Capital,Capital,Policy & Governance,Main Contractor,03007,Capital Expenditure,Capital,ADDRESS REDACTED,10/02/2021,0153054,320.48,Capital,Sansco Services Limited t/a X-Press Legal Services,81566,,
Chorley Borough Council,http://statistics.data.gov.uk/id/local-authority/30UE,Capital,Capital,Policy & Governance,Main Contractor,03007,Capital Expenditure,Capital,,10/02/2021,0153054,23.48,Capital,Sansco Services Limited t/a X-Press Legal Services,81566,,
Chorley Borough Council,http://statistics.data.gov.uk/id/local-authority/30UE,Capital,Capital,Policy & Governance,Main Contractor,03007,Capital Expenditure,Capital,searches for ADDRESS REDACTED,10/02/2021,0153055,287.48,Capital,Sansco Services Limited t/a X-Press Legal Services,81566,,
Chorley Borough Council,http://statistics.data.gov.uk/id/local-authority/30UE,Capital,Capital,Policy & Governance,Main Contractor,03007,Capital Expenditure,Capital,,10/02/2021,0153055,23.48,Capital,Sansco Services Limited t/a X-Press Legal Services,81566,,
Chorley Borough Council,http://statistics.data.gov.uk/id/local-authority/30UE,Unapportionable Central OHeads,1009,Policy & Governance,HR Approved Occ Health Fees,15201,Indirect Employee Expenses,5002,Couselling sessions for staff in January 2021,10/02/2021,0152966,360.00,Revenue,Sarah Walsh,78412,,
Chorley Borough Council,http://statistics.data.gov.uk/id/local-authority/30UE,Central Support Services,1009,Commercial Services,General Repairs - Reactive,20004,Repairs Maintenance & Alts,5005,"Repair works to the lift as agreed with NAME REDACTED, Repair Offer N 146488755 for installation N 11082904",10/02/2021,0153037,546.87,Revenue,Schindler Ltd,78215,,
Chorley Borough Council,http://statistics.data.gov.uk/id/local-authority/30UE,Democratic Represent and  Mgnt,1007,Commercial Services,Electricity,20013,Energy Costs,5006,19/8/2020 to 27/1/2021,17/02/2021,0153176,778.62,Revenue,Scottish Power,18998,,
Chorley Borough Council,http://statistics.data.gov.uk/id/local-authority/30UE,Business Support,1095,Commercial Services,External Contractor,40198,Miscellaneous Expenses,5034,In respect of concierge services for PRIMROSE GARDENS for period  01/04/2020 to 31/03/2020,17/02/2021,0153164,"6,863.91",Revenue,Sector Security Services,19269,,
Chorley Borough Council,http://statistics.data.gov.uk/id/local-authority/30UE,Homelessness,1075,Commercial Services,External Contractor,40198,Miscellaneous Expenses,5034,In respect of Concierge services for the period 01/04/2020 - 31/03/2021,17/02/2021,0153338,"6,988.28",Revenue,Sector Security Services,19269,,
Chorley Borough Council,http://statistics.data.gov.uk/id/local-authority/30UE,Service Management & Support,1009,Customer & Digital,Tools & Equipment - Purchase,40003,"Equipment, Furniture & Materia",5023,"Trash Pump Petrol Gx240 (CEOBTED80HA),3`` Water Pump Hose Tail Coupling, 3`` Suction Hose x 1 metre, SEDDON",03/02/2021,0152828,"1,248.50",Revenue,Seddons (Plant and Engineers) ltd,47834,,
Chorley Borough Council,http://statistics.data.gov.uk/id/local-authority/30UE,Business Support,1095,Commercial Services,Planned Maintenance,20006,Repairs Maintenance & Alts,5005,Service of mist system at primrose gardens,05/02/2021,0152979,349.00,Revenue,Sentinel Fire Services,81153,,
Chorley Borough Council,http://statistics.data.gov.uk/id/local-authority/30UE,Recreation & Sport,1037,Early Intervention,Miscellaneous Expenses,40200,Miscellaneous Expenses,5034,Gym Equipment at AS and CGLC,19/02/2021,0149901,"50,000.00",Revenue,Service Sport Ltd,65601,,
Chorley Borough Council,http://statistics.data.gov.uk/id/local-authority/30UE,Democratic Represent and  Mgnt,1007,Early Intervention,Miscellaneous Expenses,40200,Miscellaneous Expenses,5034,October 2020 Monthly Maintenance Service Charges,19/02/2021,0150400,"1,595.00",Revenue,Service Sport Ltd,65601,,
Chorley Borough Council,http://statistics.data.gov.uk/id/local-authority/30UE,Recreation & Sport,1037,Early Intervention,Miscellaneous Expenses,40200,Miscellaneous Expenses,5034,"Monthly Service Charge - November 2020 - June 2021, 8 x 1595.00 (not incl. of VAT)",19/02/2021,0153406,"1,595.00",Revenue,Service Sport Ltd,65601,,
Chorley Borough Council,http://statistics.data.gov.uk/id/local-authority/30UE,Elections,1012,Policy & Governance,Stationery,40050,"Printing, Stationery & General",5026,100 LCC conversion sundries packs,24/02/2021,0153300,495.00,Revenue,Shaw & Sons Ltd,18092,,
Chorley Borough Council,http://statistics.data.gov.uk/id/local-authority/30UE,Business Support,1095,Commercial Services,Grants To Other Organisations,40127,Grants and Subscriptions,5031,chorley big grant,10/02/2021,0153198,"4,000.00",Revenue,Smart Techs (NW) Ltd,81629,,
Chorley Borough Council,http://statistics.data.gov.uk/id/local-authority/30UE,Central Support Services,1009,Policy & Governance,Miscellaneous Expenses,40200,Miscellaneous Expenses,5034,"SRBC Opt in Garden Waste Income, 389 at 25.",10/02/2021,0153078,"9,725.00",Revenue,South Ribble Borough Council,17889,,
Chorley Borough Council,http://statistics.data.gov.uk/id/local-authority/30UE,Business Support,1095,Commercial Services,Window Cleaning,20034,Cleaning and Domestic Supplies,5012,"PRIMROSE GARDENS Window cleaning services for Period 01/04/2020 - 31/03/2021, 65 apartments with 7 windows per unit",17/02/2021,0153212,477.95,Revenue,Sparkle Window Cleaning (Michael Jennings),77989,,
Chorley Borough Council,http://statistics.data.gov.uk/id/local-authority/30UE,Control Accounts,Control,Policy & Governance,General Balances,00100,Balance Sheet,Balance,Monthly deductions from Payroll,26/02/2021,0153709,429.66,Revenue,St Catherines Hospice Promotions,72375,,
Chorley Borough Council,http://statistics.data.gov.uk/id/local-authority/30UE,Democratic Represent and  Mgnt,1007,Policy & Governance,Grants To Other Organisations,40127,Grants and Subscriptions,5031,Councillor community grant 2018/19,26/02/2021,0153560,300.00,Revenue,St Chads Bowling Club,76151,,
Chorley Borough Council,http://statistics.data.gov.uk/id/local-authority/30UE,Corporate Management,1008,Early Intervention,Grants to Voluntary Organisations,40124,Grants and Subscriptions,5031,organisations/health protec,12/02/2021,0153053,"4,080.00",Revenue,St Laurence`s PCC,17814,,
Chorley Borough Council,http://statistics.data.gov.uk/id/local-authority/30UE,Capital,Capital,Early Intervention,Grants,03002,Capital Expenditure,Capital,ADDRESS REDACTED,10/02/2021,0152360,"3,292.00",Capital,Stannah Lift Services Ltd,80943,,
Chorley Borough Council,http://statistics.data.gov.uk/id/local-authority/30UE,Capital,Capital,Early Intervention,Grants,03002,Capital Expenditure,Capital,ADDRESS REDACTED,10/02/2021,0152361,"2,964.00",Capital,Stannah Lift Services Ltd,80943,,
Chorley Borough Council,http://statistics.data.gov.uk/id/local-authority/30UE,Capital,Capital,Early Intervention,Grants,03002,Capital Expenditure,Capital,ADDRESS REDACTED,10/02/2021,0152362,"5,589.00",Capital,Stannah Lift Services Ltd,80943,,
Chorley Borough Council,http://statistics.data.gov.uk/id/local-authority/30UE,Capital,Capital,Early Intervention,Grants,03002,Capital Expenditure,Capital,NAME REDACTED,10/02/2021,0153143,"3,004.00",Capital,Stannah Lift Services Ltd,80943,,
Chorley Borough Council,http://statistics.data.gov.uk/id/local-authority/30UE,Capital,Capital,Early Intervention,Consultants Fees,03025,Capital Expenditure,Capital,Westway Pavilion Contract - Implementation Stage from Contract Let through to Practical Completion and Handover,10/02/2021,0152758,"5,000.00",Capital,Steve Wells Associates Ltd,77157,,
Chorley Borough Council,http://statistics.data.gov.uk/id/local-authority/30UE,Capital,Capital,Early Intervention,Consultants Fees,03025,Capital Expenditure,Capital,Westway Pavilion Contract - Implementation Stage from Contract Let through to Practical Completion and Handover,10/02/2021,0152759,"5,000.00",Capital,Steve Wells Associates Ltd,77157,,
Chorley Borough Council,http://statistics.data.gov.uk/id/local-authority/30UE,Recreation & Sport,1037,Early Intervention,Miscellaneous Expenses,40200,Miscellaneous Expenses,5034,Pool Plant Operator Course (Accredited) 2 Day Course. Successful candidates will be entered onto the PWTAG register,12/02/2021,0153162,"1,793.00",Revenue,Stockwell Safety,81547,,
Chorley Borough Council,http://statistics.data.gov.uk/id/local-authority/30UE,Parking Services,1066,Commercial Services,Consultants` Fees,40077,Services,5027,additional costs,05/02/2021,0152893,"3,511.35",Revenue,Street Civil Engineering Limited,76750,,
Chorley Borough Council,http://statistics.data.gov.uk/id/local-authority/30UE,Economic Development,1096,Commercial Services,Miscellaneous Expenses,40200,Miscellaneous Expenses,5034,Spalding design seat with backrest in FSC mix 70% redwood left natural on stainless steel (brushed finish) box section legs,12/02/2021,0152950,"1,990.00",Revenue,Street Design Limited,61600,,
Chorley Borough Council,http://statistics.data.gov.uk/id/local-authority/30UE,Economic Development,1096,Commercial Services,Miscellaneous Expenses,40200,Miscellaneous Expenses,5034,Delivery charge of 185.00,12/02/2021,0152950,185.00,Revenue,Street Design Limited,61600,,
Chorley Borough Council,http://statistics.data.gov.uk/id/local-authority/30UE,Democratic Represent and  Mgnt,1007,Commercial Services,Asset Maintenance Fund,20012,Repairs Maintenance & Alts,5005,Scaffolding hire at Astley Hall,10/02/2021,0153052,"1,353.00",Revenue,Stringfellow Bldg Cntrctrs Ltd,17893,,
Chorley Borough Council,http://statistics.data.gov.uk/id/local-authority/30UE,Capital,Capital,Early Intervention,Grants,03002,Capital Expenditure,Capital,ADDRESS REDACTED,26/02/2021,0153678,"5,571.50",Capital,Stringfellow Bldg Cntrctrs Ltd,17893,,
Chorley Borough Council,http://statistics.data.gov.uk/id/local-authority/30UE,Capital,Capital,Early Intervention,Grants,03002,Capital Expenditure,Capital,ADDRESS REDACTED,26/02/2021,0153679,"3,950.25",Capital,Stringfellow Bldg Cntrctrs Ltd,17893,,
Chorley Borough Council,http://statistics.data.gov.uk/id/local-authority/30UE,Capital,Capital,Early Intervention,Grants,03002,Capital Expenditure,Capital,ADDRESS REDACTED,26/02/2021,0153684,"3,884.50",Capital,Stringfellow Bldg Cntrctrs Ltd,17893,,
Chorley Borough Council,http://statistics.data.gov.uk/id/local-authority/30UE,Central Support Services,1009,Early Intervention,Miscellaneous Expenses,40200,Miscellaneous Expenses,5034,cancelled by credit 32144297,10/02/2021,0149567,819.20,Revenue,SUEZ R&R UK LTD,17615,,
Chorley Borough Council,http://statistics.data.gov.uk/id/local-authority/30UE,Economic Development,1096,Commercial Services,Refuse Collection,20037,Cleaning and Domestic Supplies,5012,60 x 1100L bins per week (20 bins emptied 3 times a week Mon/Weds/Fri) @ 9.83 per bin. Weekly costs 589.80.,26/02/2021,0152332,"3,081.98",Revenue,SUEZ R&R UK LTD,17615,,
Chorley Borough Council,http://statistics.data.gov.uk/id/local-authority/30UE,Business Support,1095,Commercial Services,Refuse Collection,20037,Cleaning and Domestic Supplies,5012,"2020/21- To provide a bakkie cage for cardboard in Service Yard 3 @ Market Walk Shopping Centre, Chorley.",26/02/2021,0152332,12.00,Revenue,SUEZ R&R UK LTD,17615,,
Chorley Borough Council,http://statistics.data.gov.uk/id/local-authority/30UE,Business Support,1095,Commercial Services,Refuse Collection,20037,Cleaning and Domestic Supplies,5012,2020/21 - Market Walk Yard 3 - 35 yard roll on/roll off cardboard skip @25 rental per month - no haulage or disposal costs,26/02/2021,0152332,50.00,Revenue,SUEZ R&R UK LTD,17615,,
Chorley Borough Council,http://statistics.data.gov.uk/id/local-authority/30UE,Business Support,1095,Commercial Services,Refuse Collection,20037,Cleaning and Domestic Supplies,5012,2020/21 - Market Walk Yard 1 - 35 yard roll on/roll off cardboard skip @25 rental per month - no haulage or disposal costs,26/02/2021,0152332,25.00,Revenue,SUEZ R&R UK LTD,17615,,
Chorley Borough Council,http://statistics.data.gov.uk/id/local-authority/30UE,Business Support,1095,Commercial Services,Refuse Collection,20037,Cleaning and Domestic Supplies,5012,2020/21 - Market Walk Yard 2 - 35 yard roll on/roll off cardboard skip @25 rental per month - no haulage or disposal costs,26/02/2021,0152332,25.00,Revenue,SUEZ R&R UK LTD,17615,,
Chorley Borough Council,http://statistics.data.gov.uk/id/local-authority/30UE,Service Management & Support,1009,Customer & Digital,Refuse Collection,20037,Cleaning and Domestic Supplies,5012,Exchange 20 yard street sweeping skip for transportation to Farrington Waste Disposal site @80.96 per exchange,10/02/2021,0152350,"1,538.24",Revenue,SUEZ R&R UK LTD,17615,,
Chorley Borough Council,http://statistics.data.gov.uk/id/local-authority/30UE,Service Management & Support,1009,Customer & Digital,Refuse Collection,20037,Cleaning and Domestic Supplies,5012,Exchange 35 yard street cleaning & fly tipping skip for transportation to Whinny Hill Waste disposal site @90.09 per exchange,10/02/2021,0152350,"1,171.17",Revenue,SUEZ R&R UK LTD,17615,,
Chorley Borough Council,http://statistics.data.gov.uk/id/local-authority/30UE,Service Management & Support,1009,Customer & Digital,Refuse Collection,20037,Cleaning and Domestic Supplies,5012,Exchange 35 yard Green Waste skip for delivery to your depot for processing @ 84.26per exchange  01/07/19 - 31/05/2020,10/02/2021,0152350,505.56,Revenue,SUEZ R&R UK LTD,17615,,
Chorley Borough Council,http://statistics.data.gov.uk/id/local-authority/30UE,Service Management & Support,1009,Customer & Digital,Refuse Collection,20037,Cleaning and Domestic Supplies,5012,Disposal Charge for Green Waste contained in 35 yard skip @37.50 per unit 01/07/19 - 31/05/2020,10/02/2021,0152350,403.50,Revenue,SUEZ R&R UK LTD,17615,,
Chorley Borough Council,http://statistics.data.gov.uk/id/local-authority/30UE,Service Management & Support,1009,Customer & Digital,Refuse Collection,20037,Cleaning and Domestic Supplies,5012,Exchange 20 yard street sweeping skip for transportation to Farrington Waste Disposal site @80.96 per exchange,17/02/2021,0153260,809.60,Revenue,SUEZ R&R UK LTD,17615,,
Chorley Borough Council,http://statistics.data.gov.uk/id/local-authority/30UE,Service Management & Support,1009,Customer & Digital,Refuse Collection,20037,Cleaning and Domestic Supplies,5012,Exchange 35 yard street cleaning & fly tipping skip for transportation to Whinny Hill Waste disposal site @90.09 per exchange,17/02/2021,0153260,"1,351.35",Revenue,SUEZ R&R UK LTD,17615,,
Chorley Borough Council,http://statistics.data.gov.uk/id/local-authority/30UE,Service Management & Support,1009,Customer & Digital,Refuse Collection,20037,Cleaning and Domestic Supplies,5012,Exchange 35 yard Green Waste skip for delivery to your depot for processing @ 84.26per exchange  01/07/19 - 31/05/2020,17/02/2021,0153260,337.04,Revenue,SUEZ R&R UK LTD,17615,,
Chorley Borough Council,http://statistics.data.gov.uk/id/local-authority/30UE,Service Management & Support,1009,Customer & Digital,Refuse Collection,20037,Cleaning and Domestic Supplies,5012,Disposal Charge for Green Waste contained in 35 yard skip @37.50 per unit 01/07/19 - 31/05/2020,17/02/2021,0153260,912.75,Revenue,SUEZ R&R UK LTD,17615,,
Chorley Borough Council,http://statistics.data.gov.uk/id/local-authority/30UE,Democratic Represent and  Mgnt,1007,Policy & Governance,Tools & Equipment - Maintenance,40005,"Equipment, Furniture & Materia",5023,Gold level of maintenance for the PA system in the Lancastrian for the period Jan 15th 2021 to 14th January 2022,26/02/2021,0153426,898.00,Revenue,T G Baker (sound) LTD,22364,,
Chorley Borough Council,http://statistics.data.gov.uk/id/local-authority/30UE,Business Support,1095,Commercial Services,Building Services Maintenance Other,20076,Fixtures and Fittings,5010,New PC tower for DOP for CCTV system and re-installation of the CCTV system on site.,24/02/2021,0153238,"1,387.00",Revenue,Technology Solutions,72376,,
Chorley Borough Council,http://statistics.data.gov.uk/id/local-authority/30UE,Business Support,1095,Commercial Services,Security Service,40062,Services,5027,Security cover at DOP - January 2021,03/02/2021,0152943,"7,180.13",Revenue,The ExcluSec Group Ltd,78056,,
Chorley Borough Council,http://statistics.data.gov.uk/id/local-authority/30UE,Central Support Services,1009,Commercial Services,Agency Staff,13000,Direct Employee Expenses,5001,NAME REDACTED - estates surveyor fees,10/02/2021,0153039,"1,795.10",Revenue,The Oyster Partnership Ltd,81409,,
Chorley Borough Council,http://statistics.data.gov.uk/id/local-authority/30UE,Central Support Services,1009,Commercial Services,Agency Staff,13000,Direct Employee Expenses,5001,NAME REDACTED - estates surveyor fees,10/02/2021,0153040,"1,575.00",Revenue,The Oyster Partnership Ltd,81409,,
Chorley Borough Council,http://statistics.data.gov.uk/id/local-authority/30UE,Central Support Services,1009,Commercial Services,Agency Staff,13000,Direct Employee Expenses,5001,NAME REDACTED - estates surveyor fees,10/02/2021,0153042,"1,862.21",Revenue,The Oyster Partnership Ltd,81409,,
Chorley Borough Council,http://statistics.data.gov.uk/id/local-authority/30UE,Central Support Services,1009,Commercial Services,Agency Staff,13000,Direct Employee Expenses,5001,NAME REDACTED - estates surveyor fees,10/02/2021,0153043,"1,757.65",Revenue,The Oyster Partnership Ltd,81409,,
Chorley Borough Council,http://statistics.data.gov.uk/id/local-authority/30UE,Central Support Services,1009,Commercial Services,Agency Staff,13000,Direct Employee Expenses,5001,NAME REDACTED - estates surveyor fees,10/02/2021,0153044,"1,823.90",Revenue,The Oyster Partnership Ltd,81409,,
Chorley Borough Council,http://statistics.data.gov.uk/id/local-authority/30UE,Central Support Services,1009,Commercial Services,Agency Staff,13000,Direct Employee Expenses,5001,NAME REDACTED - estates surveyor fees,10/02/2021,0153045,"1,860.59",Revenue,The Oyster Partnership Ltd,81409,,
Chorley Borough Council,http://statistics.data.gov.uk/id/local-authority/30UE,Central Support Services,1009,Commercial Services,Agency Staff,13000,Direct Employee Expenses,5001,NAME REDACTED - estates surveyor fees,10/02/2021,0153047,"1,750.00",Revenue,The Oyster Partnership Ltd,81409,,
Chorley Borough Council,http://statistics.data.gov.uk/id/local-authority/30UE,Central Support Services,1009,Commercial Services,Agency Staff,13000,Direct Employee Expenses,5001,NAME REDACTED - estates surveyor fees,10/02/2021,0153048,"1,771.88",Revenue,The Oyster Partnership Ltd,81409,,
Chorley Borough Council,http://statistics.data.gov.uk/id/local-authority/30UE,Central Support Services,1009,Commercial Services,Agency Staff,13000,Direct Employee Expenses,5001,NAME REDACTED - estates surveyor fees,10/02/2021,0153049,"1,290.63",Revenue,The Oyster Partnership Ltd,81409,,
Chorley Borough Council,http://statistics.data.gov.uk/id/local-authority/30UE,Central Support Services,1009,Commercial Services,Agency Staff,13000,Direct Employee Expenses,5001,NAME REDACTED - estates surveyor fees,10/02/2021,0153061,"1,662.50",Revenue,The Oyster Partnership Ltd,81409,,
Chorley Borough Council,http://statistics.data.gov.uk/id/local-authority/30UE,Central Support Services,1009,Commercial Services,Agency Staff,13000,Direct Employee Expenses,5001,NAME REDACTED - estates surveyor fees,10/02/2021,0153132,"2,034.38",Revenue,The Oyster Partnership Ltd,81409,,
Chorley Borough Council,http://statistics.data.gov.uk/id/local-authority/30UE,Central Support Services,1009,Commercial Services,Agency Staff,13000,Direct Employee Expenses,5001,NAME REDACTED - estates surveyor fees,10/02/2021,0153133,"1,837.50",Revenue,The Oyster Partnership Ltd,81409,,
Chorley Borough Council,http://statistics.data.gov.uk/id/local-authority/30UE,Central Support Services,1009,Commercial Services,Agency Staff,13000,Direct Employee Expenses,5001,NAME REDACTED - estates surveyor fees,10/02/2021,0153134,"1,771.88",Revenue,The Oyster Partnership Ltd,81409,,
Chorley Borough Council,http://statistics.data.gov.uk/id/local-authority/30UE,Central Support Services,1009,Commercial Services,Agency Staff,13000,Direct Employee Expenses,5001,NAME REDACTED - estates surveyor fees,10/02/2021,0153135,"1,838.16",Revenue,The Oyster Partnership Ltd,81409,,
Chorley Borough Council,http://statistics.data.gov.uk/id/local-authority/30UE,Central Support Services,1009,Commercial Services,Agency Staff,13000,Direct Employee Expenses,5001,NAME REDACTED - estates surveyor fees,10/02/2021,0153137,"1,028.13",Revenue,The Oyster Partnership Ltd,81409,,
Chorley Borough Council,http://statistics.data.gov.uk/id/local-authority/30UE,Central Support Services,1009,Commercial Services,Agency Staff,13000,Direct Employee Expenses,5001,NAME REDACTED - estates surveyor fees,17/02/2021,0153154,"1,811.59",Revenue,The Oyster Partnership Ltd,81409,,
Chorley Borough Council,http://statistics.data.gov.uk/id/local-authority/30UE,Central Support Services,1009,Commercial Services,Agency Staff,13000,Direct Employee Expenses,5001,NAME REDACTED - estates surveyor fees,17/02/2021,0153384,"1,750.00",Revenue,The Oyster Partnership Ltd,81409,,
Chorley Borough Council,http://statistics.data.gov.uk/id/local-authority/30UE,Central Support Services,1009,Commercial Services,Agency Staff,13000,Direct Employee Expenses,5001,NAME REDACTED - estates surveyor fees,26/02/2021,0153693,"1,750.00",Revenue,The Oyster Partnership Ltd,81409,,
Chorley Borough Council,http://statistics.data.gov.uk/id/local-authority/30UE,Corporate Management,1008,Commercial Services,Miscellaneous Expenses,40200,Miscellaneous Expenses,5034,"Provision of, transportation & placing on site at various locations in Chorley of 20 no. `Townscape PLT/C125 City planter 1250",17/02/2021,0153299,"2,945.00",Revenue,Townscape products ltd,78064,,
Chorley Borough Council,http://statistics.data.gov.uk/id/local-authority/30UE,Service Management & Support,1009,Customer & Digital,Grounds Maintenance Contractor,20043,Grounds Maintenance Costs,5013,To fell one Ash tree on Westway and one leaning Ivy clad tree on Chancery Road.,10/02/2021,0153072,720.00,Revenue,Treescape North West Ltd,17688,,
Chorley Borough Council,http://statistics.data.gov.uk/id/local-authority/30UE,Service Management & Support,1009,Customer & Digital,Grounds Maintenance Contractor,20043,Grounds Maintenance Costs,5013,Ash tree near to Common Bank Lodge to be reduced.,10/02/2021,0153079,820.00,Revenue,Treescape North West Ltd,17688,,
Chorley Borough Council,http://statistics.data.gov.uk/id/local-authority/30UE,Service Management & Support,1009,Customer & Digital,Grounds Maintenance Contractor,20043,Grounds Maintenance Costs,5013,"Ash tree in advanced state of decline, Common Bank Lodge.",10/02/2021,0153080,420.00,Revenue,Treescape North West Ltd,17688,,
Chorley Borough Council,http://statistics.data.gov.uk/id/local-authority/30UE,Service Management & Support,1009,Customer & Digital,Grounds Maintenance Contractor,20043,Grounds Maintenance Costs,5013,Reduction of 3 Poplars at Mason Field.,26/02/2021,0153616,980.00,Revenue,Treescape North West Ltd,17688,,
Chorley Borough Council,http://statistics.data.gov.uk/id/local-authority/30UE,Capital,Capital,Commercial Services,Main Contractor,03007,Capital Expenditure,Capital,"All Seasons Leisure Centre, An engineer to attend site and review the Trend BMS and associated controllers across the site",12/02/2021,0152451,"1,180.00",Capital,Trend Control Systems Ltd,80990,,
Chorley Borough Council,http://statistics.data.gov.uk/id/local-authority/30UE,Service Management & Support,1009,Customer & Digital,Vehicles and Plant Maintenance,30045,Direct Transport Costs,5016,Settlement of damages for Vauxhall Movano 2.3 cdti 3.5T cage tipper,05/02/2021,0152959,"1,075.73",Revenue,Triple Point Lease Partners,71646,,
Chorley Borough Council,http://statistics.data.gov.uk/id/local-authority/30UE,Service Management & Support,1009,Customer & Digital,Petrol,30005,Direct Transport Costs,5016,29 nov 2020,26/02/2021,0151168,412.98,Revenue,Uk Fuels Ltd,57996,,
Chorley Borough Council,http://statistics.data.gov.uk/id/local-authority/30UE,Central Support Services,1009,Policy & Governance,Miscellaneous Expenses,40200,Miscellaneous Expenses,5034,01 november 2020,10/02/2021,0153129,"1,618.93",Revenue,UK Healthcare (BDHSC),17241,,
Chorley Borough Council,http://statistics.data.gov.uk/id/local-authority/30UE,Unapportionable Central OHeads,1009,Policy & Governance,Miscellaneous Expenses,40200,Miscellaneous Expenses,5034,01 december 2020,10/02/2021,0153130,"1,614.33",Revenue,UK Healthcare (BDHSC),17241,,
Chorley Borough Council,http://statistics.data.gov.uk/id/local-authority/30UE,Central Support Services,1009,Customer & Digital,Service Fees,40056,Services,5027,Daily Hybrid Mail & Annual Billing,17/02/2021,0151953,"1,844.70",Revenue,UKMAIL Ltd (Mail),57758,,
Chorley Borough Council,http://statistics.data.gov.uk/id/local-authority/30UE,Unapportionable Central OHeads,1009,Customer & Digital,Service Fees,40056,Services,5027,Daily Hybrid Mail & Annual Billing,17/02/2021,0152363,"1,495.32",Revenue,UKMAIL Ltd (Mail),57758,,
Chorley Borough Council,http://statistics.data.gov.uk/id/local-authority/30UE,Unapportionable Central OHeads,1009,Customer & Digital,Service Fees,40056,Services,5027,Daily Hybrid Mail & Annual Billing,17/02/2021,0152589,"1,063.87",Revenue,UKMAIL Ltd (Mail),57758,,
Chorley Borough Council,http://statistics.data.gov.uk/id/local-authority/30UE,Unapportionable Central OHeads,1009,Customer & Digital,Service Fees,40056,Services,5027,Daily Hybrid Mail & Annual Billing,17/02/2021,0152821,656.92,Revenue,UKMAIL Ltd (Mail),57758,,
Chorley Borough Council,http://statistics.data.gov.uk/id/local-authority/30UE,Central Support Services,1009,Customer & Digital,Service Fees,40056,Services,5027,Daily Hybrid Mail & Annual Billing,17/02/2021,0153004,986.28,Revenue,UKMAIL Ltd (Mail),57758,,
Chorley Borough Council,http://statistics.data.gov.uk/id/local-authority/30UE,Unapportionable Central OHeads,1009,Customer & Digital,Service Fees,40056,Services,5027,Daily Hybrid Mail & Annual Billing,17/02/2021,0153276,694.74,Revenue,UKMAIL Ltd (Mail),57758,,
Chorley Borough Council,http://statistics.data.gov.uk/id/local-authority/30UE,Control Accounts,Control,Policy & Governance,General Balances,00100,Balance Sheet,Balance,Monthly Deductions from Payroll,19/02/2021,0153445,"1,793.70",Revenue,Unify Credit Union Ltd,55509,,
Chorley Borough Council,http://statistics.data.gov.uk/id/local-authority/30UE,Central Support Services,1009,Commercial Services,Other Contributions,40145,Grants and Subscriptions,5031,New water supply to Alker Lane Chorley,10/02/2021,0152995,"55,020.50",Revenue,United Utilities Water Limited,80570,,
Chorley Borough Council,http://statistics.data.gov.uk/id/local-authority/30UE,Capital,Capital,Early Intervention,Grants,03002,Capital Expenditure,Capital,ADDRESS REDACTED,03/02/2021,0152825,"4,857.65",Capital,UPS Building and Maintenance Ltd,76235,,
Chorley Borough Council,http://statistics.data.gov.uk/id/local-authority/30UE,Capital,Capital,Early Intervention,Grants,03002,Capital Expenditure,Capital,ADDRESS REDACTED,03/02/2021,0152878,"5,338.75",Capital,UPS Building and Maintenance Ltd,76235,,
Chorley Borough Council,http://statistics.data.gov.uk/id/local-authority/30UE,Capital,Capital,Early Intervention,Grants,03002,Capital Expenditure,Capital,ADDRESS REDACTED,19/02/2021,0153298,"3,992.65",Capital,UPS Building and Maintenance Ltd,76235,,
Chorley Borough Council,http://statistics.data.gov.uk/id/local-authority/30UE,Regulatory Services,1048,Customer & Digital,"Hackney Badges, Plates Etc.",40023,"Equipment, Furniture & Materia",5023,"Flexiplate, Clear, Size 4F, Type A Adhesive x 4 packs of 50 @ 136.93 each",10/02/2021,0153187,534.04,Revenue,VIP-SYSTEM LIMITED,69902,,
Chorley Borough Council,http://statistics.data.gov.uk/id/local-authority/30UE,Corporate Management,1008,Customer & Digital,"Hackney Badges, Plates Etc.",40023,"Equipment, Furniture & Materia",5023,Chorley PHV Size 4F unique V5 (Taxi Plate) x 4 packs of 50 @ 126.77 each,10/02/2021,0153187,494.40,Revenue,VIP-SYSTEM LIMITED,69902,,
Chorley Borough Council,http://statistics.data.gov.uk/id/local-authority/30UE,Regulatory Services,1048,Customer & Digital,"Hackney Badges, Plates Etc.",40023,"Equipment, Furniture & Materia",5023,Chorley HCV Size 4F unique V5 (Taxi Plate) x1 pack of 50 @ 126.77,10/02/2021,0153187,126.77,Revenue,VIP-SYSTEM LIMITED,69902,,
Chorley Borough Council,http://statistics.data.gov.uk/id/local-authority/30UE,Regulatory Services,1048,Customer & Digital,"Hackney Badges, Plates Etc.",40023,"Equipment, Furniture & Materia",5023,Chorley PHV Size 2 x 1E Style 3_23_2 (Window Display) x4 packs of 50 @ 24.74 each,10/02/2021,0153187,98.96,Revenue,VIP-SYSTEM LIMITED,69902,,
Chorley Borough Council,http://statistics.data.gov.uk/id/local-authority/30UE,Regulatory Services,1048,Customer & Digital,"Hackney Badges, Plates Etc.",40023,"Equipment, Furniture & Materia",5023,Chorley HCV Size 2 x 1E Style 3_23_2 (Window Display)  x 1 pack of 50 @ 24.74,10/02/2021,0153187,24.74,Revenue,VIP-SYSTEM LIMITED,69902,,
Chorley Borough Council,http://statistics.data.gov.uk/id/local-authority/30UE,Corporate Management,1008,Customer & Digital,"Hackney Badges, Plates Etc.",40023,"Equipment, Furniture & Materia",5023,"Quick Release Key Only, Clear x 3 bags of 50 @ 57.69 each",10/02/2021,0153187,173.07,Revenue,VIP-SYSTEM LIMITED,69902,,
Chorley Borough Council,http://statistics.data.gov.uk/id/local-authority/30UE,Corporate Management,1008,Customer & Digital,"Hackney Badges, Plates Etc.",40023,"Equipment, Furniture & Materia",5023,"Harpoon Security Button, Yellow x 12 bags of 50 @ 14.45 each",10/02/2021,0153187,173.40,Revenue,VIP-SYSTEM LIMITED,69902,,
Chorley Borough Council,http://statistics.data.gov.uk/id/local-authority/30UE,Regulatory Services,1048,Customer & Digital,"Hackney Badges, Plates Etc.",40023,"Equipment, Furniture & Materia",5023,"VIP Lasersafe Self-Adhesive Labels, 4 Up On A4 Sheet x 1 pack of 50 @ 39.96",10/02/2021,0153187,39.96,Revenue,VIP-SYSTEM LIMITED,69902,,
Chorley Borough Council,http://statistics.data.gov.uk/id/local-authority/30UE,Central Support Services,1009,Commercial Services,Consultants` Fees,40077,Services,5027,Procurement Management (Alker Lane),10/02/2021,0153157,"3,250.00",Revenue,Walker Sime Limited,80921,,
Chorley Borough Council,http://statistics.data.gov.uk/id/local-authority/30UE,Central Support Services,1009,Commercial Services,Professional Fees,40063,Services,5027,Tatton remediation support,17/02/2021,0153235,"1,250.00",Revenue,Wardell Armstrong LLP,77818,,
Chorley Borough Council,http://statistics.data.gov.uk/id/local-authority/30UE,Culture & Heritage,1036,Commercial Services,Water - Metered Supplies,20022,Water Services,5009,28/10/20 to 26/1/21,03/02/2021,0152926,401.67,Revenue,Water-plus,17926,,
Chorley Borough Council,http://statistics.data.gov.uk/id/local-authority/30UE,Unapportionable Central OHeads,1009,Commercial Services,Water - Metered Supplies,20022,Water Services,5009,5/11/20 to 6/2/21,17/02/2021,0153272,"1,223.77",Revenue,Water-plus,17926,,
Chorley Borough Council,http://statistics.data.gov.uk/id/local-authority/30UE,Recreation & Sport,1037,Commercial Services,Water - Metered Supplies,20022,Water Services,5009,1/4/21 to 31/3/22,24/02/2021,0153570,512.05,Revenue,Water-plus,17926,,
Chorley Borough Council,http://statistics.data.gov.uk/id/local-authority/30UE,Central Support Services,1009,Commercial Services,Water - Unmetered Supply,20023,Water Services,5009,1/4/21 to 31/3/22,24/02/2021,0153575,"3,728.44",Revenue,Water-plus,17926,,
Chorley Borough Council,http://statistics.data.gov.uk/id/local-authority/30UE,Unapportionable Central OHeads,1009,Chief Executive,Postages,40082,Communication and Computing,5028,"Mail collections for Town Hall and Union Street, April 20 to March 21",26/02/2021,0153500,269.83,Revenue,Whistl North Limited,67256,,
Chorley Borough Council,http://statistics.data.gov.uk/id/local-authority/30UE,Corporate Management,1008,Chief Executive,Employee Related Insurance,18003,Indirect Employee Expenses,5002,Zurich Municipal ENGINEERING INSPECTION FEE 2021 exc VAT.,24/02/2021,0153450,"8,131.81",Revenue,Zurich Insurance Company,16236,,
Chorley Borough Council,http://statistics.data.gov.uk/id/local-authority/30UE,Corporate Management,1008,Chief Executive,Employee Related Insurance,18003,Indirect Employee Expenses,5002,ZM Engineering Insurance 2021 including IPT,24/02/2021,0153460,"2,089.37",Revenue,Zurich Insurance Company,16236,,
